Workbook

Sheet AER only (hidden)
B1: Data in these columns used for data validation and database purposes.
B2: Date last modified: | C2: 2017-01-16 | D2: added (Albury and Victora) for AGN
C3: 2016-10-17 | D3: updated TransGrid's correct legal name, corrected TasNetworks (T) to June financial year
C4: 2017-02-01 | D4: inserted Power and Water, added NRs (dms_FeederCat_1 and dms_FeederCat_2)
C5: 2017-03-03 | D5: inserted AEMO as a business | AB5: FOR ELECTRICITY BUSINESSES ONLY
AB6: Feeder Types | AF6: TasNetworks (D) | AG6: MAIFI flag | AH6: Feeder Names
AB7: CBD | AC7: Urban | AD7: Short rural | AE7: long rural | AF7: EXTRA
B8: dms_TradingName_List | C8: dms_TradingNameFull_List | D8: dms_ABN_List | E8: dms_JurisdictionList | F8: dms_Sector_List | G8: dms_Segment_List | H8: dms_FormControl_List | I8: dms_RPT_List | J8: dms_RPTMonth_List | K8: dms_PRCPlength_List | L8: dms_CRCPlength_List | M8: dms_FRCPlength_List | N8: dms_663_List | O8: dms_DeterminationRef_List | P8: dms_Addr1_List | Q8: dms_Addr2_List | R8: dms_Suburb_List | S8: dms_State_List | T8: dms_PostCode_List | U8: dms_PAddr1_List | V8: dms_PAddr2_List | W8: dms_PSuburb_List | X8: dms_PState_List | Y8: dms_PPostCode_List | Z8: dms_ContactName1_List | AA8: dms_ContactPh1_List | AB8: dms_ContactEmail_List | AC8: dms_CBD_flag | AD8: dms_Urban_flag | AE8: dms_ShortRural_flag | AF8: dms_LongRural_flag | AG8: dms_FeederType_5_flag | AH8: dms_MAIFI_flag_List | AI8: dms_FeederName_1 | AJ8: dms_FeederName_2 | AK8: dms_FeederName_3 | AL8: dms_FeederName_4 | AM8: dms_FeederName_5 | AN8: Column1
B9: ActewAGL Distribution | C9: ActewAGL Distribution | D9: 76670568688 | E9: ACT | F9: Electricity | G9: Distribution | H9: Revenue cap | I9: Financial | J9: June | K9: 5 | L9: 5 | M9: 5 | N9: 5 | O9: 2014-19 Distribution Determination | P9: 40 Bunda Street | R9: CANBERRA | S9: ACT | T9: 2600 | U9: GPO BOX 366 | W9: CANBERRA | X9: ACT | Y9: 2601 | Z9: Robert Walker | AA9: 02 6248 3847 | AB9: robert.walker@actewagle.com.au | AC9: NO | AD9: YES | AE9: YES | AF9: NO | AG9: NO | AI9: CBD | AJ9: Urban | AK9: Short rural | AL9: Long rural | AN9: ActewAGL Distribution
B10: ActewAGL Distribution (Tx Assets) | C10: ActewAGL Distribution (Tx Assets) | D10: 76670568688 | E10: ACT | F10: Electricity | G10: Distribution | H10: Revenue cap | I10: Financial | J10: June | K10: 0 | L10: 5 | M10: 5 | N10: 5 | O10: distribution determination | P10: 40 Bunda Street | R10: CANBERRA | S10: ACT | T10: 2600 | U10: GPO BOX 366 | W10: CANBERRA | X10: ACT | Y10: 2601 | Z10: Robert Walker | AA10: 02 6248 3847 | AB10: robert.walker@actewagle.com.au | AI10: CBD | AJ10: Urban | AK10: Short rural | AL10: Long rural | AN10: ActewAGL Distribution (Tx Assets)
B11: ActewAGL Gas | C11: ActewAGL Gas | D11: 76670568688 | E11: ACT | F11: Gas | G11: Distribution | H11: Weighted average price cap | I11: Financial | J11: June | K11: 5 | L11: 5 | M11: 5 | N11: x | P11: 40 Bunda Street | R11: CANBERRA | S11: ACT | T11: 2600 | U11: GPO BOX 366 | W11: CANBERRA | X11: ACT | Y11: 2601 | Z11: Philip Deamer | AA11: 02 6248 3438 | AB11: GasAAReview@actewagl.com.au | AN11: ActewAGL Gas
B12: AEMO | C12: Australian Energy Market Operator Ltd | D12: 94072010327 | E12: Vic | F12: Electricity | G12: Transmission | H12: - | I12: Financial | J12: March | K12: 0 | L12: 5 | M12: 5 | N12: x | O12: - | P12: Level 22 | Q12: 530 Collins Street | R12: MELBOURNE | S12: VIC | T12: 3000 | U12: GPO Box 2008 | W12: MELBOURNE | X12: VIC | Y12: 3001 | AN12: AEMO
B13: AGN (Albury and Victoria) | C13: Australian Gas Networks Limited (reporting data for Albury and Victoria) | D13: 19078551685 | E13: Vic | F13: Gas | G13: Distribution | H13: Weighted average price cap | I13: Calendar | J13: December | L13: 5 | M13: 5 | N13: x | P13: Level 6 | Q13: 400 King William Street | R13: ADELAIDE | S13: SA | T13: 5000 | U13: PO Box 6468 | V13: Halifax Street | W13: ADELAIDE | X13: SA | Y13: 5000 | Z13: Craig de Laine | AA13: 08 8418 1129 | AB13: craig.delaine@agn.com.au | AI13: CBD | AJ13: Urban | AK13: Short rural | AL13: Long rural | AN13: AGN (Albury)
B14: AGN (Albury) | C14: Australian Gas Networks Limited (reporting data for Albury) | D14: 19078551685 | E14: Vic | F14: Gas | G14: Distribution | H14: Weighted average price cap | I14: Calendar | J14: December | L14: 5 | M14: 5 | N14: x | P14: Level 6 | Q14: 400 King William Street | R14: ADELAIDE | S14: SA | T14: 5000 | U14: PO Box 6468 | V14: Halifax Street | W14: ADELAIDE | X14: SA | Y14: 5000 | Z14: Craig de Laine | AA14: 08 8418 1129 | AB14: craig.delaine@agn.com.au | AI14: CBD | AJ14: Urban | AK14: Short rural | AL14: Long rural
B15: AGN (SA) | C15: Australian Gas Networks Limited (reporting data for SA) | D15: 19078551685 | E15: SA | F15: Gas | G15: Distribution | H15: Weighted average price cap | I15: Financial | J15: June | L15: 5 | M15: 5 | N15: 5 | O15: distribution determination | P15: Level 6 | Q15: 400 King William Street | R15: ADELAIDE | S15: SA | T15: 5000 | U15: PO Box 6468 | V15: Halifax Street | W15: ADELAIDE | X15: SA | Y15: 5000 | Z15: Craig de Laine | AA15: 08 8418 1129 | AB15: craig.delaine@agn.com.au | AN15: AGN (SA)
B16: AGN (Victoria) | C16: Australian Gas Networks Limited (reporting data for Victoria) | D16: 19078551685 | E16: Vic | F16: Gas | G16: Distribution | H16: Weighted average price cap | I16: Calendar | J16: December | L16: 5 | M16: 5 | N16: x | P16: Level 6 | Q16: 400 King William Street | R16: ADELAIDE | S16: SA | T16: 5000 | U16: PO Box 6468 | V16: Halifax Street | W16: ADELAIDE | X16: SA | Y16: 5000 | Z16: Craig de Laine | AA16: 08 8418 1129 | AB16: craig.delaine@agn.com.au | AN16: AGN (Victoria)
B17: Amadeus | C17: APT Pipelines (NT) Pty Ltd | D17: 39009737393 | E17: NT | F17: Gas | G17: Transmission | H17: Weighted average price cap | I17: Financial | J17: June | K17: 5 | L17: 5 | M17: 5 | N17: x | O17: n/a | P17: Level 19, HSBC Building | Q17: 580 George Street | R17: SYDNEY | S17: NSW | T17: 2000 | U17: Level 19, HSBC Building | V17: 580 George Street | W17: SYDNEY | X17: NSW | Y17: 2000 | Z17: Alexandra Curran | AA17: 02 9275 0020 | AB17: alexandra.curran@apa.com.au | AN17: Amadeus
B18: APA GasNet | C18: APA GasNet Australia (Operations) Pty Ltd | D18: 065083009 | E18: Vic | F18: Gas | G18: Transmission | H18: Weighted average price cap | I18: Calendar | J18: December | K18: 4 | L18: 5 | M18: 5 | N18: x | P18: Level 19, HSBC Building | Q18: 580 George Street | R18: SYDNEY | S18: NSW | T18: 2000 | U18: PO Box R41 | W18: ROYAL EXCHANGE | X18: NSW | Y18: 1225 | Z18: Alexandra Curran | AA18: 02 9275 0020 | AB18: alexandra.curran@apa.com.au | AN18: APA GasNet
B19: Ausgrid | C19: Ausgrid | D19: 78508211731 | E19: NSW | F19: Electricity | G19: Distribution | H19: Revenue cap | I19: Financial | J19: June | K19: 5 | L19: 5 | M19: 5 | N19: 5 | O19: 2014-19 Distribution Determination | P19: 570 George St | R19: SYDNEY | S19: NSW | T19: 2000 | U19: GPO Box 4009 | W19: SYDNEY | X19: NSW | Y19: 2001 | Z19: John Thomson | AA19: (02) 9269 2312 | AB19: john.thomson@ausgrid.com.au | AC19: YES | AD19: YES | AE19: YES | AF19: YES | AG19: NO | AI19: CBD | AJ19: Urban | AK19: Short rural | AL19: Long rural | AN19: Ausgrid
B20: Ausgrid (Tx Assets) | C20: Ausgrid (Tx Assets) | D20: 67505337385 | E20: NSW | F20: Electricity | G20: Distribution | H20: Revenue cap | I20: Financial | J20: June | K20: 0 | L20: 5 | M20: 5 | N20: 5 | O20: distribution determination | P20: 570 George St | R20: SYDNEY | S20: NSW | T20: 2000 | U20: GPO Box 4009 | W20: SYDNEY | X20: NSW | Y20: 2001 | Z20: John Thomson | AA20: (02) 9269 2312 | AB20: john.thomson@ausgrid.com.au | AI20: CBD | AJ20: Urban | AK20: Short rural | AL20: Long rural | AN20: Ausgrid (Tx Assets)
B21: AusNet (D) | C21: AusNet Electricity Services Pty Ltd | D21: 91064651118 | E21: Vic | F21: Electricity | G21: Distribution | H21: Revenue cap | I21: Calendar | J21: December | K21: 5 | L21: 5 | M21: 5 | N21: 2 | O21: 2016-20 Distribution Determination | P21: Level 32 | Q21: 2 Southbank Boulevard | R21: SOUTHBANK | S21: Vic | T21: 3006 | U21: Locked Bag 14051 | W21: MELBOURNE CITY MAIL CENTRE | X21: VIC | Y21: 8001 | AD21: YES | AE21: YES | AF21: YES | AG21: NO | AI21: CBD | AJ21: Urban | AK21: Short rural | AL21: Long rural | AN21: AusNet (D)
B22: AusNet (Gas) | C22: AusNet Gas Services | D22: 086015036 | E22: Vic | F22: Gas | G22: Distribution | H22: Weighted average price cap | I22: Calendar | J22: December | L22: 5 | M22: 5 | N22: X | P22: Level 19, HSBC Building | Q22: 580 George Street | R22: SYDNEY | S22: NSW | T22: 2000 | U22: PO Box R41 | W22: ROYAL EXCHANGE | X22: NSW | Y22: 1225 | Z22: Alexandra Curran | AA22: 02 9275 0020 | AB22: alexandra.curran@apa.com.au | AN22: AusNet (Gas)
B23: AusNet (T) | C23: Ausnet Services (Transmission) Ltd | D23: 48116124362 | E23: Vic | F23: Electricity | G23: Transmission | H23: Revenue cap | I23: Financial | J23: March | K23: 4 | L23: 5 | M23: 5 | N23: 2 | O23: transmission determination | P23: Level 32 | Q23: 2 Southbank Boulevard | R23: SOUTHBANK | S23: Vic | T23: 3006 | U23: Locked Bag 14051 | W23: MELBOURNE CITY MAIL CENTRE | X23: Vic | Y23: 8001 | Z23: Clare Thompson | AA23: 03 9695 6670 | AB23: clare.e.thompson@ausnetservices.com.au | AI23: CBD | AJ23: Urban | AK23: Short rural | AL23: Long rural | AN23: AusNet (T)
B24: Australian Distribution Co. | C24: Australian Distribution Co. | D24: 11222333444 | E24: <state> | F24: Electricity | G24: Distribution | H24: Revenue cap | I24: Financial | J24: June | K24: 5 | L24: 5 | M24: 5 | N24: 2 | O24: distribution determination | P24: 123 Straight Street | R24: SYDNEY | S24: NSW | T24: 2000 | U24: PO Box 123 | W24: SYDNEY | X24: NSW | Y24: 2000 | Z24: Bob Smith | AA24: 02 1234 5678 | AB24: bob@auselec.net.au | AI24: CBD | AJ24: Urban | AK24: Short rural | AL24: Long rural | AN24: Australian Distribution Co.
B25: Australian Distribution Co. (Vic) | C25: Australian Distribution Co. (Victoria) | D25: 11222333444 | E25: Vic | F25: Electricity | G25: Distribution | H25: Revenue cap | I25: Calendar | J25: December | K25: 5 | L25: 5 | M25: 5 | N25: 2 | O25: distribution determination | P25: 123 Straight Street | R25: MELBOURNE | S25: Vic | T25: 3000 | U25: PO Box 123 | W25: MELBOURNE | X25: VIC | Y25: 3000 | Z25: Bob Smith | AA25: 02 1234 5678 | AB25: bob@auselec.net.au | AI25: CBD | AJ25: Urban | AK25: Short rural | AL25: Long rural | AN25: Australian Distribution Co. (Vic)
B26: Australian Distribution Co.(Gas) | C26: Australian Distribution Co. (Gas) | D26: 11222333444 | E26: <state> | F26: Gas | G26: Distribution | H26: Revenue cap | I26: Financial | J26: June | K26: 5 | L26: 15 | M26: 5 | N26: 2 | O26: distribution determination | P26: 123 Straight Street | R26: SYDNEY | S26: NSW | T26: 2000 | U26: PO Box 123 | W26: SYDNEY | X26: NSW | Y26: 2000 | Z26: Bob Smith | AA26: 02 1234 5678 | AB26: bob@auselec.net.au | AI26: CBD | AJ26: Urban | AK26: Short rural | AL26: Long rural | AN26: Australian Distribution Co.
B27: Australian Transmission Co. | C27: Australian Transmission Co. | D27: 11222333444 | E27: <state> | F27: Electricity | G27: Transmission | H27: Revenue cap | I27: Financial | J27: June | K27: 5 | L27: 5 | M27: 5 | N27: 5 | O27: transmission determination | P27: 123 Straight Street | R27: SYDNEY | S27: NSW | T27: 2000 | U27: PO Box 123 | W27: SYDNEY | X27: NSW | Y27: 2000 | Z27: Bob Smith | AA27: 02 1234 5678 | AB27: bob@auselec.net.au | AI27: CBD | AJ27: Urban | AK27: Short rural | AL27: Long rural | AN27: Australian Transmission Co.
B28: Australian Transmission Co. (Gas) | C28: Australian Transmission Co. (Gas) | D28: 11222333444 | E28: <state> | F28: Gas | G28: Transmission | H28: Revenue cap | I28: Financial | J28: June | K28: 5 | L28: 14 | M28: 5 | N28: 5 | O28: transmission determination | P28: 123 Straight Street | R28: SYDNEY | S28: NSW | T28: 2000 | U28: PO Box 123 | W28: SYDNEY | X28: NSW | Y28: 2000 | Z28: Bob Smith | AA28: 02 1234 5678 | AB28: bob@auselec.net.au | AI28: CBD | AJ28: Urban | AK28: Short rural | AL28: Long rural | AN28: Australian Transmission Co.
B29: Central Ranges Pipeline (D) | C29: Central Ranges Pipeline Pty Ltd | D29: 108218355 | E29: NSW | F29: Gas | G29: Distribution | H29: Weighted average price cap | I29: Financial | J29: June | K29: 0 | L29: 15 | M29: 5 | N29: 5 | O29: distribution determination | P29: Level 19 | Q29: 580 George Street | R29: SYDNEY | S29: NSW | T29: 2000 | U29: PO Box R41 | W29: ROYAL EXCHANGE | X29: NSW | Y29: 1225 | Z29: Scott Young | AA29: 02 9275 0031 | AB29: scott.young@apa.com.au
B30: Central Ranges Pipeline (T) | C30: Central Ranges Pipeline Pty Ltd | D30: 108218355 | E30: NSW | F30: Gas | G30: Distribution | H30: Weighted average price cap | I30: Financial | J30: June | K30: 0 | L30: 14 | M30: 5 | N30: 5 | O30: transmission determination | P30: Level 19 | Q30: 580 George Street | R30: SYDNEY | S30: NSW | T30: 2000 | U30: PO Box R41 | W30: ROYAL EXCHANGE | X30: NSW | Y30: 1225 | Z30: Scott Young | AA30: 02 9275 0031 | AB30: scott.young@apa.com.au
B31: CitiPower | C31: CitiPower | D31: 76064651056 | E31: Vic | F31: Electricity | G31: Distribution | H31: Revenue cap | I31: Calendar | J31: December | K31: 5 | L31: 5 | M31: 5 | N31: 2 | O31: 2016-20 Distribution Determination | P31: 40 Market Street | R31: MELBOURNE | S31: Vic | T31: 3000 | U31: Locked Bag 14090 | W31: MELBOURNE | X31: VIC | Y31: 8001 | Z31: Hannah Williams | AA31: 03 9683 4088 | AB31: hwilliams@powercor.com.au | AC31: YES | AD31: YES | AE31: NO | AF31: NO | AG31: NO | AI31: CBD | AJ31: Urban | AK31: Short rural | AL31: Long rural | AN31: CitiPower
B32: Directlink | C32: Directlink | D32: 16779340889 | E32: Qld | F32: Electricity | G32: Transmission | H32: Revenue cap | I32: Financial | J32: June | K32: 9 | L32: 5 | M32: 5 | N32: 5 | O32: transmission determination | P32: Level 19, HSBC Building | Q32: 580 George Street | R32: SYDNEY | S32: NSW | T32: 2000 | U32: PO Box R41 | W32: ROYAL EXCHANGE | X32: NSW | Y32: 1225 | Z32: Scott Young | AA32: 02 9275 0031 | AB32: scott.young@apa.com.au | AI32: CBD | AJ32: Urban | AK32: Short rural | AL32: Long rural | AN32: Directlink
B33: ElectraNet | C33: ElectraNet | D33: 41094482416 | E33: SA | F33: Electricity | G33: Transmission | H33: Revenue cap | I33: Financial | J33: June | L33: 5 | M33: 5 | N33: 5 | O33: transmission determination | P33: 52-55 East Terrace | Q33: Rymill Park | R33: ADELAIDE | S33: SA | T33: 5000 | U33: PO Box 7096 | V33: Hutt Street Post Office | W33: ADELAIDE | X33: SA | Y33: 5000 | Z33: Bill Jackson | AA33: 08 8404 7969 | AB33: jackson.bill@electranet.com.au | AI33: CBD | AJ33: Urban | AK33: Short rural | AL33: Long rural | AN33: ElectraNet
B34: Endeavour Energy | C34: Endeavour Energy | D34: 11247365823 | E34: NSW | F34: Electricity | G34: Distribution | H34: Revenue cap | I34: Financial | J34: June | K34: 5 | L34: 5 | M34: 5 | N34: 5 | O34: 2014-19 Distribution Determination | P34: 51 Huntingwood Drive | R34: HUNTINGWOOD | S34: NSW | T34: 2148 | U34: PO Box 811 | W34: SEVEN HILLS | X34: NSW | Y34: 1730 | Z34: Jon Hocking | AA34: 02 9853 4386 / 0407 348 156 | AB34: Jon.Hocking@Endeavourenergy.com.au | AC34: NO | AD34: YES | AE34: YES | AF34: YES | AG34: NO | AI34: CBD | AJ34: Urban | AK34: Short rural | AL34: Long rural | AN34: Endeavour Energy
B35: Energex | C35: Energex | D35: 40078849055 | E35: Qld | F35: Electricity | G35: Distribution | H35: Revenue cap | I35: Financial | J35: June | K35: 5 | L35: 5 | M35: 5 | N35: 5 | O35: 2015-20 Distribution Determination | P35: 26 Reddacliff Street | R35: NEWSTEAD | S35: Qld | T35: 4006 | U35: 26 Reddacliff Street | W35: NEWSTEAD | X35: QLD | Y35: 4006 | Z35: Nicola Roscoe | AA35: 07 3664 5891 | AB35: nicolaroscoe@energex.com.au | AC35: YES | AD35: YES | AE35: YES | AF35: NO | AG35: NO | AI35: CBD | AJ35: Urban | AK35: Short rural | AL35: Long rural | AN35: Energex
B36: Ergon Energy | C36: Ergon Energy | D36: 50087646062 | E36: Qld | F36: Electricity | G36: Distribution | H36: Revenue cap | I36: Financial | J36: June | K36: 5 | L36: 5 | M36: 5 | N36: 5 | O36: 2015-20 Distribution Determination | P36: 22 Walker Street | R36: TOWNSVILLE | S36: Qld | T36: 4810 | U36: Po Box 264 | W36: FORTITUDE VALLEY | X36: QLD | Y36: 4006 | Z36: Jenny Doyle, Group Manager Regulatory Affairs | AA36: (07) 3851 6416 | AB36: jenny.doyle@ergon.com.au | AC36: NO | AD36: YES | AE36: YES | AF36: YES | AG36: NO | AI36: CBD | AJ36: Urban | AK36: Short rural | AL36: Long rural | AN36: Ergon Energy
B37: Essential Energy | C37: Essential Energy | D37: 37428185226 | E37: NSW | F37: Electricity | G37: Distribution | H37: Revenue cap | I37: Financial | J37: June | K37: 5 | L37: 5 | M37: 5 | N37: 5 | O37: 2014-19 Distribution Determination | P37: 8 Buller Street | R37: PORT MACQUARIE | S37: NSW | T37: 2444 | U37: PO Box 5730 | W37: PORT MACQUARIE | X37: NSW | Y37: 2444 | Z37: Catherine Waddell | AA37: 02 6338 3553 | AB37: catherine.waddell@essentialenergy.com.au | AE37: YES | AF37: YES | AG37: NO | AI37: CBD | AJ37: Urban | AK37: Short rural | AL37: Long rural | AN37: Essential Energy
B38: Jemena Electricity | C38: Jemena Electricity | D38: 82064651083 | E38: Vic | F38: Electricity | G38: Distribution | H38: Revenue cap | I38: Calendar | J38: December | K38: 5 | L38: 5 | M38: 5 | N38: 2 | O38: 2016-20 Distribution Determination | P38: Level 16 | Q38: 567 Collins Street | R38: MELBOURNE | S38: VIC | T38: 3000 | U38: PO Box 16182 | W38: MELBOURNE | X38: VIC | Y38: 8001 | Z38: Matthew Serpell | AA38: 03 9173 8231 | AB38: matthew.serpell@jemena.com.au | AE38: YES | AF38: NO | AG38: NO | AI38: CBD | AJ38: Urban | AK38: Short rural | AL38: Long rural | AN38: Jemena Electricity
B39: JGN | C39: Jemena Gas Networks (NSW) Ltd | D39: 003 004 322 | E39: NSW | F39: Gas | G39: Distribution | H39: Weighted average price cap | I39: Financial | J39: June | K39: 5 | L39: 5 | M39: 5 | AN39: JGN
B40: Multinet Gas | C40: Multinet Gas (DB No.1) Pty Ltd (ACN 086 026 986), Multinet Gas (DB No.2) Pty Ltd (ACN 086 230 122) | D40: 086026986 | E40: Vic | F40: Gas | G40: Distribution | H40: Weighted average price cap | I40: Calendar | J40: December | K40: 0 | L40: 5 | M40: 5 | N40: x | P40: 43-45 Centreway | R40: MT WAVERLEY | S40: Vic | T40: 3149 | Z40: Andrew Schille | AA40: 03 8846 9860 | AB40: andrew.schille@ue.com.au | AN40: Multinet Gas
B41: Murraylink | C41: Murraylink | D41: 79181207909 | E41: SA | F41: Electricity | G41: Transmission | H41: Revenue cap | I41: Financial | J41: June | K41: 9 | L41: 5 | M41: 5 | N41: 5 | O41: transmission determination | P41: Level 19 | Q41: 580 George Street | R41: SYDNEY | S41: NSW | T41: 2000 | U41: PO Box R41 | W41: ROYAL EXCHANGE | X41: NSW | Y41: 1225 | Z41: Scott Young | AA41: 02 9275 0031 | AB41: scott.young@apa.com.au | AI41: CBD | AJ41: Urban | AK41: Short rural | AL41: Long rural | AN41: Murraylink
B42: Power and Water | C42: Power and Water Corporation | D42: 15947352360 | E42: NT | F42: Electricity | G42: Distribution | H42: Revenue cap | I42: Financial | J42: June | K42: 0 | L42: 5 | M42: 5 | N42: x | O42: distribution determination | P42: GPO Box 1921 | R42: DARWIN | S42: NT | T42: 0801 | U42: GPO Box 1921 | W42: DARWIN | X42: NT | Y42: 0801 | Z42: Jodi Triggs | AA42: 08 8985 8456 | AB42: jodi.triggs@powerwater.com.au | AC42: YES | AD42: YES | AE42: YES | AF42: YES | AG42: NO
B43: Powercor Australia | C43: Powercor Australia | D43: 89064651109 | E43: Vic | F43: Electricity | G43: Distribution | H43: Revenue cap | I43: Calendar | J43: December | K43: 0 | L43: 5 | M43: 5 | N43: 2 | O43: 2016-20 Distribution Determination | P43: 40 Market Street | R43: MELBOURNE | S43: Vic | T43: 3000 | U43: Locked bag 14090 | W43: MELBOURNE | X43: VIC | Y43: 8001 | Z43: Hannah Williams | AA43: 03 9683 4088 | AB43: hwilliams@powercor.com.au | AE43: YES | AF43: YES | AG43: NO | AI43: CBD | AJ43: Urban | AK43: Short rural | AL43: Long rural | AN43: Powercor Australia
B44: Powerlink | C44: Queensland Electricity Transmission Corporation Limited trading as Powerlink Queensland | D44: 82078849233 | E44: Qld | F44: Electricity | G44: Transmission | H44: Revenue cap | I44: Financial | J44: June | K44: 5 | L44: 5 | M44: 5 | N44: 5 | O44: transmission determination | P44: 33 Harold St | R44: VIRGINIA | S44: Qld | T44: 4014 | U44: PO Box 1193 | W44: VIRGINIA | X44: QLD | Y44: 4014 | Z44: Jennifer Harris | AA44: 07 3860 2667 | AB44: jharris@powerlink.com.au | AI44: CBD | AJ44: Urban | AK44: Short rural | AL44: Long rural | AN44: Powerlink
B45: Roma to Brisbane Pipeline | C45: APT Petroleum Pipelines Limited t/a Roma to Brisbane Pipeline | D45: 009 737 393 | E45: Qld | F45: Gas | G45: Transmission | H45: Weighted average price cap | I45: Financial | J45: June | K45: 4 | L45: 5 | M45: 5 | N45: x | O45: n/a | P45: Level 19 | Q45: 590 George Street | R45: SYDNEY | S45: NSW | T45: 2000 | U45: PO Box R41 | W45: ROYAL EXCHANGE | X45: NSW | Y45: 1225 | Z45: Scott Young | AA45: 02 9275 0031 | AB45: scott.young@apa.com.au | AI45: CBD | AJ45: Urban | AK45: Short rural | AL45: Long rural | AN45: Roma to Brisbane Pipeline
B46: SA Power Networks | C46: SA Power Networks | D46: 13332330749 | E46: SA | F46: Electricity | G46: Distribution | H46: Revenue cap | I46: Financial | J46: June | K46: 5 | L46: 5 | M46: 5 | N46: 5 | O46: 2015-20 Distribution Determination | P46: 1 Anzac Highway | R46: KESWICK | S46: SA | T46: 5035 | U46: GPO Box 77 | W46: ADELAIDE | X46: SA | Y46: 5000 | Z46: Richard Sibly | AA46: 08 8404 5613 | AB46: richard.sibly@sapowernetworks.com.au | AE46: YES | AF46: YES | AG46: NO | AI46: CBD | AJ46: Urban | AK46: Short rural | AL46: Long rural | AN46: SA Power Networks
B47: TasNetworks (D) | C47: TasNetworks (D) | D47: 24167357299 | E47: Tas | F47: Electricity | G47: Distribution | H47: Revenue cap | I47: Financial | J47: June | K47: 5 | L47: 5 | M47: 5 | N47: 5 | O47: distribution determination | P47: 1-7 Maria Street | R47: LENAH VALLEY | S47: Tas | T47: 7008 | U47: PO Box 606 | W47: MOONAH | X47: Tas | Y47: 7009 | Z47: John Sayers | AA47: 03 6271 6469 | AB47: john.sayers@tasnetworks.com.au | AE47: YES | AF47: YES | AG47: YES | AI47: Critical Infrastructure | AJ47: High density commercial | AK47: Urban | AL47: High density rural | AM47: Low density rural | AN47: TasNetworks (D)
B48: TasNetworks (T) | C48: TasNetworks (T) | D48: 24167357299 | E48: Tas | F48: Electricity | G48: Transmission | H48: Revenue cap | I48: Financial | J48: June | K48: 5 | L48: 5 | M48: 5 | N48: 5 | O48: transmission determination | P48: 1-7 Maria Street | R48: LENAH VALLEY | S48: Tas | T48: 7008 | U48: PO Box 606 | W48: MOONAH | X48: Tas | Y48: 7009 | Z48: John Sayers | AA48: 03 6271 6469 | AB48: john.sayers@tasnetworks.com.au | AI48: CBD | AJ48: Urban | AK48: Short rural | AL48: Long rural | AN48: TasNetworks (T)
B49: TransGrid | C49: NSW Electricity Networks Operations Pty Ltd trading as TransGrid | D49: 609169959 | E49: NSW | F49: Electricity | G49: Transmission | H49: Revenue cap | I49: Financial | J49: June | K49: 5 | L49: 5 | M49: 4 | N49: 5 | O49: transmission determination | P49: 180 Thomas Street | R49: SYDNEY | S49: NSW | T49: 2000 | U49: PO Box A1000 | W49: SYDNEY SOUTH | X49: NSW | Y49: 1235 | Z49: Garrie Chubb | AA49: 0408 210 221 | AB49: garrie.chubb@transgrid.com.au | AI49: CBD | AJ49: Urban | AK49: Short rural | AL49: Long rural | AN49: TransGrid
B50: United Energy | C50: United Energy | D50: 70064651029 | E50: Vic | F50: Electricity | G50: Distribution | H50: Revenue cap | I50: Calendar | J50: December | K50: 5 | L50: 5 | M50: 5 | N50: 2 | O50: 2016-20 Distribution Determination | P50: Level 3 | Q50: 6 Nexus Court | R50: MULGRAVE | S50: Vic | T50: 3149 | U50: PO Box 449 | W50: MOUNT WAVERLEY | X50: VIC | Y50: 3170 | Z50: Mathew Abraham | AA50: 03 8846 9758 | AB50: mathew.abraham@ue.com.au | AE50: YES | AF50: NO | AG50: NO | AI50: CBD | AJ50: Urban | AK50: Short rural | AL50: Long rural | AN50: United Energy
B51: Western Power (D) | C51: Western Power (D) | D51: 18540492861 | E51: WA | F51: Electricity | G51: Distribution | H51: Revenue cap | I51: Financial | J51: June | K51: 0 | L51: 12 | M51: 4 | N51: x | O51: distribution determination | P51: 363 Wellington Street | R51: PERTH | S51: WA | T51: 6000 | U51: GPO Box L921 | W51: PERTH | X51: WA | Y51: 6842 | Z51: Judy Hunter | AA51: 08 9326 6239 | AB51: judy.hunter@westernpower.com.au | AE51: YES | AF51: YES | AG51: NO | AH51: NO | AI51: CBD | AJ51: Urban | AK51: Short rural | AL51: Long rural | AN51: Western Power (D)
B52: Western Power (T) | C52: Western Power (T) | D52: 18540492861 | E52: WA | F52: Electricity | G52: Transmission | H52: Revenue cap | I52: Financial | J52: June | K52: 0 | L52: 12 | M52: 4 | N52: x | O52: transmission determination | P52: 363 Wellington Street | R52: PERTH | S52: WA | T52: 6000 | U52: GPO Box L921 | W52: PERTH | X52: WA | Y52: 6842 | Z52: Judy Hunter | AA52: 08 9326 6239 | AB52: judy.hunter@westernpower.com.au | AE52: YES | AF52: YES | AG52: NO | AI52: CBD | AJ52: Urban | AK52: Short rural | AL52: Long rural | AN52: Western Power (T)
Y55: For EB & Reset RINs only | AD55: For AARs only
B56: The Reg Year Ending (dms_RYE) must be set to the last year of the regulatory period. For forecast data is is usually (FRCP_y5) for actual it is a single year (CRY). For historical actual data the RYE will need to be set manually in the business details sheet by setting the dms_Multiyear_flag to 1 and putting the correct value in 'dms_Specified_FinalYear. See cells C67:C68 | N56: Drop down selector box for CA & Reset RINs. | O56: For CA & Reset RINs only | Y56: for DNSP only | AD56: For DNSPs only | AJ56: Reason for interruption | AK56: dms_Reason_Interruption_Detailed | AL56: dms_Reason_Interruption | AM56: dms_STPIS_Exclusion_List
B57: dms_Model_List | C57: DELETE NR 'CRY' IF NOT AN ANNUAL RIN (EB, CA , ARR) | E57: dms_RYE_Formula_Result | N57: dms_0203_ProjectType | O57: dms_020303_01_UOM | P57: dms_020501_01_UOM | Q57: dms_020501_02_UOM | R57: dms_020501_03_UOM | S57: dms_020501_04_UOM | T57: dms_020603_01_UOM | U57: dms_020701_01_UOM | V57: dms_020701_02_UOM | W57: dms_040102_01_UOM | X57: dms_040102_04_UOM | Y57: dms_030601_01_UOM | Z57: dms_030601_02_UOM | AA57: dms_030701_01_UOM | AB57: dms_030702_01_UOM | AC57: dms_030703_01_UOM | AD57: dms_030605_UOM | AE57: dms_03060703_UOM | AJ57: Animal | AK57: Animal impact | AL57: Animal | AM57: Weather
B58: ARR | C58: ANNUAL REPORTING STATEMENT | E58: =LEFT(dms_SingleYear_FinalYear_Result,2)&RIGHT(dms_SingleYear_FinalYear_Result,2) -> 2017 | F58: =LEFT(dms_SingleYear_FinalYear_Result,2)&RIGHT(dms_SingleYear_FinalYear_Result,2) | H58: Formula errors are OK | N58: New line on new route - single circuit | O58: Circuit line length in km | P58: 0's | Q58: 0's | R58: 0's | S58: 0's | T58: 0's | U58: km | V58: km | W58: 0's | X58: days | Y58: minutes/customer | Z58: minutes/customer | AA58: Customer / km | AB58: % | AC58: km | AD58: number | AE58: number | AK58: Animal nesting/burrowing, etc and other | AL58: Asset failure | AM58: Equipment failure
B59: CA | C59: CATEGORY ANALYSIS | E59: =LEFT(dms_SingleYear_FinalYear_Result,2)&RIGHT(dms_SingleYear_FinalYear_Result,2) -> 2017 | F59: =LEFT(dms_SingleYear_FinalYear_Result,2)&RIGHT(dms_SingleYear_FinalYear_Result,2) | H59: Formula errors are OK | N59: New line on new route - dual circuit | O59: Circuit line length in km | P59: 0's | Q59: 0's | R59: 0's | S59: 0's | T59: 0's | U59: 0's | V59: 0's | W59: 0's | X59: 0's | Y59: minutes/customer | Z59: minutes/customer | AA59: MWh/customer | AB59: Number of spans | AD59: number | AE59: number | AK59: Other | AL59: Other | AM59: Operational error
B60: CPI | C60: CPI | N60: New line on new route - other | O60: Circuit line length in km | P60: MVA added | Q60: MVA added | R60: MVA added | S60: MVA added | T60: 0's | U60: km | V60: km | W60: 0's | X60: $0s | Y60: interruptions/customer | Z60: interruptions/customer | AA60: kVA / customer | AB60: Number of spans | AD60: number | AE60: number | AJ60: Asset failure | AK60: LV | AL60: Overloads | AM60: Vegetation
B61: EB | C61: ECONOMIC BENCHMARKING | E61: =LEFT(dms_SingleYear_FinalYear_Result,2)&RIGHT(dms_SingleYear_FinalYear_Result,2) -> 2017 | F61: =LEFT(dms_SingleYear_FinalYear_Result,2)&RIGHT(dms_SingleYear_FinalYear_Result,2) | H61: Formula errors are OK | N61: Line rebuild over existing route - single circuit | O61: Circuit line length in km | P61: 0's | Q61: 0's | R61: 0's | S61: 0's | T61: 0's | U61: km | V61: km | W61: $0s | X61: 0's | Y61: interruptions/customer | Z61: interruptions/customer | AB61: Number of spans | AD61: number | AE61: number | AK61: Distribution substation | AL61: Planned | AM61: Animals
B62: PTRM | C62: POST TAX REVENUE MODEL | E62: =LEFT(dms_MultiYear_FinalYear_Result,2)&RIGHT(dms_MultiYear_FinalYear_Result,2) -> 2023 | F62: =LEFT(dms_MultiYear_FinalYear_Result,2)&RIGHT(dms_MultiYear_FinalYear_Result,2) | N62: Line rebuild over existing route - dual circuit | O62: Number | P62: total spend $0s | Q62: total spend $0s | R62: total spend $0s | S62: total spend $0s | T62: (per cent) | U62: 0's | V62: 0's | AB62: Number of spans | AD62: number | AE62: (per cent) | AK62: HV | AL62: Network business | AM62: Third party impacts
B63: Reset | C63: REGULATORY REPORTING STATEMENT | E63: =LEFT(dms_MultiYear_FinalYear_Result,2)&RIGHT(dms_MultiYear_FinalYear_Result,2) -> 2023 | F63: =LEFT(dms_MultiYear_FinalYear_Result,2)&RIGHT(dms_MultiYear_FinalYear_Result,2) | H63: Formula errors are OK | N63: Reconductor - Single circuit | O63: Number | P63: net circuit km added | Q63: net circuit km added | R63: net circuit km added | S63: net circuit km added | U63: years | V63: years | AB63: Years | AD63: number | AK63: Zone substation | AL63: Third party | AM63: Transmission failure
B64: RFM | C64: ROLL FORWARD MODEL | E64: =LEFT(dms_CRCP_FinalYear_Result,2)&RIGHT(dms_CRCP_FinalYear_Result,2) -> 2017 | F64: =LEFT(dms_CRCP_FinalYear_Result,2)&RIGHT(dms_CRCP_FinalYear_Result,2) | N64: Reconductor - Dual circuit | O64: Number | P64: total spend $0s | Q64: total spend $0s | R64: total spend $0s | S64: total spend $0s | AB64: Years | AD64: number | AK64: Subtransmission | AL64: Unknown | AM64: Load shedding
B65: WACC | C65: WEIGHTED AVERAGE COST OF CAPITAL | E65: =LEFT(dms_MultiYear_FinalYear_Result,2)&RIGHT(dms_MultiYear_FinalYear_Result,2) -> 2023 | F65: =LEFT(dms_MultiYear_FinalYear_Result,2)&RIGHT(dms_MultiYear_FinalYear_Result,2) | N65: Other | P65: net circuit km added | Q65: net circuit km added | R65: net circuit km added | S65: net circuit km added | AB65: Trees | AD65: number | AJ65: Other | AK65: insert description of 'other' | AL65: Vegetation | AM65: Inter-distributor connection failure
P66: total spend $0s | Q66: total spend $0s | R66: total spend $0s | S66: total spend $0s | AB66: Trees | AD66: number | AJ66: Overloads | AK66: - | AL66: Weather | AM66: Other
B67: dms_DataQuality_List | P67: 0's | R67: $0s | AB67: Defects | AD67: number | AJ67: Planned | AK67: - | AL67: 2 - STPIS Exclusion (3.3)(a)
B68: Actual | P68: 0's | AB68: Defects | AD68: number | AJ68: Network business | AK68: Network error | AL68: 3 - STPIS Exclusion (3.3)(a)
B69: Estimate | P69: 0's | AB69: Spans | AD69: number | AK69: Switching and protection error | AL69: 4 - STPIS Exclusion (3.3)(a)
B70: Consolidated | P70: $0s | AB70: km | AD70: (per cent) | AJ70: Third party | AK70: Fire | AL70: 5 - STPIS Exclusion (3.3)(a)
B71: Recast | AB71: Spans | AD71: (per cent) | AK71: Other | AL71: 6 - STPIS Exclusion (3.3)(a)
B72: Public | AK72: Dig-in | AL72: 7 - STPIS Exclusion (3.3)(a)
AK73: Unauthorised access
B74: For all files either AER or business needs to be able to specify the type of submission | C74: For PTRM & RFM templates we must provide a choice in case they change their form of control - otherwise it is drawn from the business specific lookup table above. | O74: For PTRM files - this field set the text for the named range "DMS_Xfactor" which in all cases is simply the text "x factors" - this saves putting in each old gas PTRM file | Y74: for TNSP only | AK74: Vehicle impact
B75: dms_SourceList | C75: dms_FormControl_Choices | O75: DMS_Xfactor | Y75: dms_030601_01_UOM | AA75: dms_030701_01_UOM | AB75: dms_030702_01_UOM | AJ75: Unknown | AK75: Unknown
B76: After appeal | C76: Revenue cap | O76: x factors | Y76: % | AA76: Number of spans | AB76: km | AJ76: Vegetation | AK76: Blow-in/Fall-in - NSP responsibility
B77: Draft decision | C77: Revenue yield | Y77: number | AA77: Years | AB77: % | AK77: Grow-in - NSP responsibility
B78: Final decision | C78: Weighted average price cap | Y78: number | AA78: Trees | AB78: km | AK78: Blow-in/Fall-in - Other responsible party
B79: PTRM update 1 | Y79: % | AA79: Defects | AB79: number | AK79: Grow-in - Other responsible party
B80: PTRM update 2 | Y80: number | AA80: Number of spans | AJ80: Weather
B81: PTRM update 3 | Y81: number | AA81: km | AJ81: 2 - STPIS Exclusion (3.3)(a)
B82: PTRM update 4 | Y82: % | AA82: km | AJ82: 3 - STPIS Exclusion (3.3)(a)
B83: PTRM update 5 | Y83: number | AA83: Number of spans | AJ83: 4 - STPIS Exclusion (3.3)(a)
B84: PTRM update 6 | Y84: number | AJ84: 5 - STPIS Exclusion (3.3)(a)
B85: PTRM update 7 | Y85: % | AJ85: 6 - STPIS Exclusion (3.3)(a)
B86: Regulatory proposal | Y86: number | AJ86: 7 - STPIS Exclusion (3.3)(a)
B87: Reporting | Y87: %
B88: Revised regulatory proposal | Y88: number
Y89: %
Y90: number
B92: dms_030402_03_Rows | C92: Alternatives feeder categories for TasNetworks (D)
B93: =IF(dms_TradingName="TasNetworks (D)","Critical Infrastructure","Customers on CBD network") -> Customers on CBD network | C93: Critical Infrastructure
B94: =IF(dms_TradingName="TasNetworks (D)","High Density Commercial","Customers on Urban network") -> Customers on Urban network | C94: High Density Commercial
B95: =IF(dms_TradingName="TasNetworks (D)","Urban","Customers on Short rural network") -> Customers on Short rural network | C95: Urban
B96: =IF(dms_TradingName="TasNetworks (D)","High Density Rural","Customers on Long rural network") -> Customers on Long rural network | C96: High Density Rural
B97: =IF(dms_TradingName="TasNetworks (D)","Low Density Rural","") ->  | C97: Low Density Rural
B101: These are indeces and lookup values for various dates. All step from the value placed in FRCP_y1 on the business and other details worksheet | L101: These date tables are currently used in the Recast templates to provide column headings and conditional formatting
B102: dms_FRCPlength_Num_List | C102: dms_FinalYear_List | D102: dms_CRCPlength_Num_List | E102: dms_CFinalYear_List | F102: dms_FRCP_years | H102: dms_CRCP_years | J102: dms_CRCP_index | L102: CRY from input cell on business sheet | M102: CRY - financial | N102: dms_FinYears | O102: CRY calendar | P102: dms_CalYears
B103: 1 | C103: dms_FRCP_y1 | D103: 1 | E103: CRCP_y1 | F103: =FRCP_y1 -> 2019-20 | G103: dms_FRCP_y1 | H103: =IF(dms_RPT="financial",VALUE(LEFT(dms_FRCP_y1,4)-1)&"-"&TEXT(VALUE(MID(dms_FRCP_y1,3,2)),"00"),VALUE(LEFT(dms_FRCP_y1,4)-1)) -> 2018 | I103: dms_CRCP_yZ | J103: 1 | L103: =CRY -> 2017 | M103: =VALUE(LEFT(CRY,4))&"-"&TEXT(MID(CRY,3,2)+1,"00") -> 2017-18 | N103: dms_CRYf_y1 | O103: =VALUE(LEFT(CRY,4)+1) -> 2018 | P103: dms_CRYc_y1
B104: 2 | C104: dms_FRCP_y2 | D104: 2 | E104: CRCP_y2 | F104: =IF(dms_RPT="financial",VALUE(LEFT(dms_FRCP_y1,4)+1)&"-"&TEXT(VALUE(RIGHT(dms_FRCP_y1,2)+1),"00"),VALUE(LEFT(dms_FRCP_y1,4)+1)) -> 2020 | G104: dms_FRCP_y2 | H104: =IF(dms_RPT="financial",VALUE(LEFT(dms_CRCP_yZ,4)-1)&"-"&TEXT(VALUE(MID(dms_CRCP_yZ,3,2)),"00"),VALUE(LEFT(dms_CRCP_yZ,4)-1)) -> 2017 | I104: dms_CRCP_yY | J104: 2 | M104: =VALUE(LEFT(dms_CRYf_y1,4)+1)&"-"&TEXT(MID(dms_CRYf_y1,3,2)+2,"00") -> 2018-19 | N104: dms_CRYf_y2 | O104: =VALUE(LEFT(dms_CRYc_y1,4)+1) -> 2019 | P104: dms_CRYc_y2
B105: 3 | C105: dms_FRCP_y3 | D105: 3 | E105: CRCP_y3 | F105: =IF(dms_RPT="financial",VALUE(LEFT(dms_FRCP_y2,4)+1)&"-"&TEXT(VALUE(RIGHT(dms_FRCP_y2,2)+1),"00"),VALUE(LEFT(dms_FRCP_y2,4)+1)) -> 2021 | G105: dms_FRCP_y3 | H105: =IF(dms_RPT="financial",VALUE(LEFT(dms_CRCP_yY,4)-1)&"-"&TEXT(VALUE(MID(dms_CRCP_yY,3,2)),"00"),VALUE(LEFT(dms_CRCP_yY,4)-1)) -> 2016 | I105: dms_CRCP_yX | J105: 3 | M105: =VALUE(LEFT(dms_CRYf_y2,4)+1)&"-"&TEXT(MID(dms_CRYf_y2,3,2)+2,"00") -> 2019-20 | N105: dms_CRYf_y3 | O105: =VALUE(LEFT(dms_CRYc_y2,4)+1) -> 2020 | P105: dms_CRYc_y3
B106: 4 | C106: dms_FRCP_y4 | D106: 4 | E106: CRCP_y4 | F106: =IF(dms_RPT="financial",VALUE(LEFT(dms_FRCP_y3,4)+1)&"-"&TEXT(VALUE(RIGHT(dms_FRCP_y3,2)+1),"00"),VALUE(LEFT(dms_FRCP_y3,4)+1)) -> 2022 | G106: dms_FRCP_y4 | H106: =IF(dms_RPT="financial",VALUE(LEFT(dms_CRCP_yX,4)-1)&"-"&TEXT(VALUE(MID(dms_CRCP_yX,3,2)),"00"),VALUE(LEFT(dms_CRCP_yX,4)-1)) -> 2015 | I106: dms_CRCP_yW | J106: 4 | M106: =VALUE(LEFT(dms_CRYf_y3,4)+1)&"-"&TEXT(MID(dms_CRYf_y3,3,2)+2,"00") -> 2020-21 | N106: dms_CRYf_y4 | O106: =VALUE(LEFT(dms_CRYc_y3,4)+1) -> 2021 | P106: dms_CRYc_y4
B107: 5 | C107: dms_FRCP_y5 | D107: 5 | E107: CRCP_y5 | F107: =IF(dms_RPT="financial",VALUE(LEFT(dms_FRCP_y4,4)+1)&"-"&TEXT(VALUE(RIGHT(dms_FRCP_y4,2)+1),"00"),VALUE(LEFT(dms_FRCP_y4,4)+1)) -> 2023 | G107: dms_FRCP_y5 | H107: =IF(dms_RPT="financial",VALUE(LEFT(dms_CRCP_yW,4)-1)&"-"&TEXT(VALUE(MID(dms_CRCP_yW,3,2)),"00"),VALUE(LEFT(dms_CRCP_yW,4)-1)) -> 2014 | I107: dms_CRCP_yV | J107: 5 | M107: =VALUE(LEFT(dms_CRYf_y4,4)+1)&"-"&TEXT(MID(dms_CRYf_y4,3,2)+2,"00") -> 2021-22 | N107: dms_CRYf_y5 | O107: =VALUE(LEFT(dms_CRYc_y4,4)+1) -> 2022 | P107: dms_CRYc_y5
B108: 6 | C108: dms_FRCP_y6 | D108: 6 | E108: CRCP_y6 | F108: =IF(dms_RPT="financial",VALUE(LEFT(dms_FRCP_y5,4)+1)&"-"&TEXT(VALUE(RIGHT(dms_FRCP_y5,2)+1),"00"),VALUE(LEFT(dms_FRCP_y5,4)+1)) -> 2024 | G108: dms_FRCP_y6 | H108: =IF(dms_RPT="financial",VALUE(LEFT(dms_CRCP_yV,4)-1)&"-"&TEXT(VALUE(MID(dms_CRCP_yV,3,2)),"00"),VALUE(LEFT(dms_CRCP_yV,4)-1)) -> 2013 | I108: dms_CRCP_yU | J108: 6 | M108: =VALUE(LEFT(dms_CRYf_y5,4)+1)&"-"&TEXT(MID(dms_CRYf_y5,3,2)+2,"00") -> 2022-23 | N108: dms_CRYf_y6 | O108: =VALUE(LEFT(dms_CRYc_y5,4)+1) -> 2023 | P108: dms_CRYc_y6
B109: 7 | C109: dms_FRCP_y7 | D109: 7 | E109: CRCP_y7 | F109: =IF(dms_RPT="financial",VALUE(LEFT(dms_FRCP_y6,4)+1)&"-"&TEXT(VALUE(RIGHT(dms_FRCP_y6,2)+1),"00"),VALUE(LEFT(dms_FRCP_y6,4)+1)) -> 2025 | G109: dms_FRCP_y7 | H109: =IF(dms_RPT="financial",VALUE(LEFT(dms_CRCP_yU,4)-1)&"-"&TEXT(VALUE(MID(dms_CRCP_yU,3,2)),"00"),VALUE(LEFT(dms_CRCP_yU,4)-1)) -> 2012 | I109: dms_CRCP_yT | J109: 7 | M109: =VALUE(LEFT(dms_CRYf_y6,4)+1)&"-"&TEXT(MID(dms_CRYf_y6,3,2)+2,"00") -> 2023-24 | N109: dms_CRYf_y7 | O109: =VALUE(LEFT(dms_CRYc_y6,4)+1) -> 2024 | P109: dms_CRYc_y7
B110: 8 | C110: dms_FRCP_y8 | D110: 8 | E110: CRCP_y8 | F110: =IF(dms_RPT="financial",VALUE(LEFT(dms_FRCP_y7,4)+1)&"-"&TEXT(VALUE(RIGHT(dms_FRCP_y7,2)+1),"00"),VALUE(LEFT(dms_FRCP_y7,4)+1)) -> 2026 | G110: dms_FRCP_y8 | H110: =IF(dms_RPT="financial",VALUE(LEFT(dms_CRCP_yT,4)-1)&"-"&TEXT(VALUE(MID(dms_CRCP_yT,3,2)),"00"),VALUE(LEFT(dms_CRCP_yT,4)-1)) -> 2011 | I110: dms_CRCP_yS | J110: 8 | M110: =VALUE(LEFT(dms_CRYf_y7,4)+1)&"-"&TEXT(MID(dms_CRYf_y7,3,2)+2,"00") -> 2024-25 | N110: dms_CRYf_y8 | O110: =VALUE(LEFT(dms_CRYc_y7,4)+1) -> 2025 | P110: dms_CRYc_y8
B111: 9 | C111: dms_FRCP_y9 | D111: 9 | E111: CRCP_y9 | F111: =IF(dms_RPT="financial",VALUE(LEFT(dms_FRCP_y8,4)+1)&"-"&TEXT(VALUE(RIGHT(dms_FRCP_y8,2)+1),"00"),VALUE(LEFT(dms_FRCP_y8,4)+1)) -> 2027 | G111: dms_FRCP_y9 | H111: =IF(dms_RPT="financial",VALUE(LEFT(dms_CRCP_yS,4)-1)&"-"&TEXT(VALUE(MID(dms_CRCP_yS,3,2)),"00"),VALUE(LEFT(dms_CRCP_yS,4)-1)) -> 2010 | I111: dms_CRCP_yR | J111: 9 | M111: =VALUE(LEFT(dms_CRYf_y8,4)+1)&"-"&TEXT(MID(dms_CRYf_y8,3,2)+2,"00") -> 2025-26 | N111: dms_CRYf_y9 | O111: =VALUE(LEFT(dms_CRYc_y8,4)+1) -> 2026 | P111: dms_CRYc_y9
B112: 10 | C112: dms_FRCP_y10 | D112: 10 | E112: CRCP_y10 | F112: =IF(dms_RPT="financial",VALUE(LEFT(dms_FRCP_y9,4)+1)&"-"&TEXT(VALUE(RIGHT(dms_FRCP_y9,2)+1),"00"),VALUE(LEFT(dms_FRCP_y9,4)+1)) -> 2028 | G112: dms_FRCP_y10 | H112: =IF(dms_RPT="financial",VALUE(LEFT(dms_CRCP_yR,4)-1)&"-"&TEXT(VALUE(MID(dms_CRCP_yR,3,2)),"00"),VALUE(LEFT(dms_CRCP_yR,4)-1)) -> 2009 | I112: dms_CRCP_yQ | J112: 10 | M112: =VALUE(LEFT(dms_CRYf_y9,4)+1)&"-"&TEXT(MID(dms_CRYf_y9,3,2)+2,"00") -> 2026-27 | N112: dms_CRYf_y10 | O112: =VALUE(LEFT(dms_CRYc_y9,4)+1) -> 2027 | P112: dms_CRYc_y10
B113: 11 | C113: dms_FRCP_y11 | D113: 11 | E113: CRCP_y11 | F113: =IF(dms_RPT="financial",VALUE(LEFT(dms_FRCP_y10,4)+1)&"-"&TEXT(VALUE(RIGHT(dms_FRCP_y10,2)+1),"00"),VALUE(LEFT(dms_FRCP_y10,4)+1)) -> 2029 | G113: dms_FRCP_y11 | H113: =IF(dms_RPT="financial",VALUE(LEFT(dms_CRCP_yQ,4)-1)&"-"&TEXT(VALUE(MID(dms_CRCP_yQ,3,2)),"00"),VALUE(LEFT(dms_CRCP_yQ,4)-1)) -> 2008 | I113: dms_CRCP_yP | J113: 11 | M113: =VALUE(LEFT(dms_CRYf_y10,4)+1)&"-"&TEXT(MID(dms_CRYf_y10,3,2)+2,"00") -> 2027-28 | N113: dms_CRYf_y11 | O113: =VALUE(LEFT(dms_CRYc_y10,4)+1) -> 2028 | P113: dms_CRYc_y11
B114: 12 | C114: dms_FRCP_y12 | D114: 12 | E114: CRCP_y12 | F114: =IF(dms_RPT="financial",VALUE(LEFT(dms_FRCP_y11,4)+1)&"-"&TEXT(VALUE(RIGHT(dms_FRCP_y11,2)+1),"00"),VALUE(LEFT(dms_FRCP_y11,4)+1)) -> 2030 | G114: dms_FRCP_y12 | H114: =IF(dms_RPT="financial",VALUE(LEFT(dms_CRCP_yP,4)-1)&"-"&TEXT(VALUE(MID(dms_CRCP_yP,3,2)),"00"),VALUE(LEFT(dms_CRCP_yP,4)-1)) -> 2007 | I114: dms_CRCP_yO | J114: 12 | M114: =VALUE(LEFT(dms_CRYf_y11,4)+1)&"-"&TEXT(MID(dms_CRYf_y11,3,2)+2,"00") -> 2028-29 | N114: dms_CRYf_y12 | O114: =VALUE(LEFT(dms_CRYc_y11,4)+1) -> 2029 | P114: dms_CRYc_y12
B115: 13 | C115: dms_FRCP_y13 | D115: 13 | E115: CRCP_y13 | F115: =IF(dms_RPT="financial",VALUE(LEFT(dms_FRCP_y12,4)+1)&"-"&TEXT(VALUE(RIGHT(dms_FRCP_y12,2)+1),"00"),VALUE(LEFT(dms_FRCP_y12,4)+1)) -> 2031 | G115: dms_FRCP_y13 | H115: =IF(dms_RPT="financial",VALUE(LEFT(dms_CRCP_yO,4)-1)&"-"&TEXT(VALUE(MID(dms_CRCP_yO,3,2)),"00"),VALUE(LEFT(dms_CRCP_yO,4)-1)) -> 2006 | I115: dms_CRCP_yN | J115: 13 | M115: =VALUE(LEFT(dms_CRYf_y12,4)+1)&"-"&TEXT(MID(dms_CRYf_y12,3,2)+2,"00") -> 2029-30 | N115: dms_CRYf_y13 | O115: =VALUE(LEFT(dms_CRYc_y12,4)+1) -> 2030 | P115: dms_CRYc_y13
B116: 14 | C116: dms_FRCP_y14 | D116: 14 | E116: CRCP_y14 | F116: =IF(dms_RPT="financial",VALUE(LEFT(dms_FRCP_y13,4)+1)&"-"&TEXT(VALUE(RIGHT(dms_FRCP_y13,2)+1),"00"),VALUE(LEFT(dms_FRCP_y13,4)+1)) -> 2032 | G116: dms_FRCP_y14 | H116: =IF(dms_RPT="financial",VALUE(LEFT(dms_CRCP_yN,4)-1)&"-"&TEXT(VALUE(MID(dms_CRCP_yN,3,2)),"00"),VALUE(LEFT(dms_CRCP_yN,4)-1)) -> 2005 | I116: dms_CRCP_yM | J116: 14 | M116: =VALUE(LEFT(dms_CRYf_y13,4)+1)&"-"&TEXT(MID(dms_CRYf_y13,3,2)+2,"00") -> 2030-31 | N116: dms_CRYf_y14 | O116: =VALUE(LEFT(dms_CRYc_y13,4)+1) -> 2031 | P116: dms_CRYc_y14
B117: 15 | C117: dms_FRCP_y15 | D117: 15 | E117: CRCP_y15 | F117: =IF(dms_RPT="financial",VALUE(LEFT(dms_FRCP_y14,4)+1)&"-"&TEXT(VALUE(RIGHT(dms_FRCP_y14,2)+1),"00"),VALUE(LEFT(dms_FRCP_y14,4)+1)) -> 2033 | G117: dms_FRCP_y15 | H117: =IF(dms_RPT="financial",VALUE(LEFT(dms_CRCP_yM,4)-1)&"-"&TEXT(VALUE(MID(dms_CRCP_yM,3,2)),"00"),VALUE(LEFT(dms_CRCP_yM,4)-1)) -> 2004 | I117: dms_CRCP_yL | J117: 15 | M117: =VALUE(LEFT(dms_CRYf_y14,4)+1)&"-"&TEXT(MID(dms_CRYf_y14,3,2)+2,"00") -> 2031-32 | N117: dms_CRYf_y15 | O117: =VALUE(LEFT(dms_CRYc_y14,4)+1) -> 2032 | P117: dms_CRYc_y15
M118: =VALUE(LEFT(dms_CRYf_y15,4)+1)&"-"&TEXT(MID(dms_CRYf_y15,3,2)+2,"00") -> 2032-33 | N118: dms_CRYf_y16 | O118: =VALUE(LEFT(dms_CRYc_y15,4)+1) -> 2033 | P118: dms_CRYc_y16
B119: These are drop down lists for businesses to select the correct FRCP_y1 on the business and other details worksheet. This also populates the column headings in the worksheets | M119: =VALUE(LEFT(dms_CRYf_y16,4)+1)&"-"&TEXT(MID(dms_CRYf_y16,3,2)+2,"00") -> 2033-34 | N119: dms_CRYf_y17 | O119: =VALUE(LEFT(dms_CRYc_y16,4)+1) -> 2034 | P119: dms_CRYc_y17
B120: dms_RCP_fyear_list | C120: dms_CRY_ListF | D120: dms_CRY_ListC | E120: dms_RCP_cyear_list | F120: dms_FRCP_fyear_list | G120: dms_FRCP_ListF | H120: dms_FRCP_ListC | I120: dms_FRCP_cyear_list | M120: =VALUE(LEFT(dms_CRYf_y17,4)+1)&"-"&TEXT(MID(dms_CRYf_y17,3,2)+2,"00") -> 2034-35 | N120: dms_CRYf_y18 | O120: =VALUE(LEFT(dms_CRYc_y17,4)+1) -> 2035 | P120: dms_CRYc_y18
B121: dms_fy1 | C121: 2005-06 | D121: 2006 | E121: dms_cy1 | F121: dms_frcp_fy1 | G121: 2015-16 | H121: 2016 | I121: dms_crcp_cy1 | M121: =VALUE(LEFT(dms_CRYf_y18,4)+1)&"-"&TEXT(MID(dms_CRYf_y18,3,2)+2,"00") -> 2035-36 | N121: dms_CRYf_y19 | O121: =VALUE(LEFT(dms_CRYc_y18,4)+1) -> 2036 | P121: dms_CRYc_y19
B122: dms_fy2 | C122: 2006-07 | D122: 2007 | E122: dms_cy2 | F122: dms_frcp_fy2 | G122: 2016-17 | H122: 2017 | I122: dms_crcp_cy2 | M122: =VALUE(LEFT(dms_CRYf_y19,4)+1)&"-"&TEXT(MID(dms_CRYf_y19,3,2)+2,"00") -> 2036-37 | N122: dms_CRYf_y20 | O122: =VALUE(LEFT(dms_CRYc_y19,4)+1) -> 2037 | P122: dms_CRYc_y20
B123: dms_fy3 | C123: 2007-08 | D123: 2008 | E123: dms_cy3 | F123: dms_frcp_fy3 | G123: 2017-18 | H123: 2018 | I123: dms_crcp_cy3
B124: dms_fy4 | C124: 2008-09 | D124: 2009 | E124: dms_cy4 | F124: dms_frcp_fy4 | G124: 2018-19 | H124: 2019 | I124: dms_crcp_cy4
B125: dms_fy5 | C125: 2009-10 | D125: 2010 | E125: dms_cy5 | F125: dms_frcp_fy5 | G125: 2019-20 | H125: 2020 | I125: dms_crcp_cy5
B126: dms_fy6 | C126: 2010-11 | D126: 2011 | E126: dms_cy6 | F126: dms_frcp_fy6 | G126: 2020-21 | H126: 2021 | I126: dms_crcp_cy6
B127: dms_fy7 | C127: 2011-12 | D127: 2012 | E127: dms_cy7 | F127: dms_frcp_fy7 | G127: 2021-22 | H127: 2022 | I127: dms_crcp_cy7
B128: dms_fy8 | C128: 2012-13 | D128: 2013 | E128: dms_cy8 | F128: dms_frcp_fy8 | G128: 2022-23 | H128: 2023 | I128: dms_crcp_cy8 | L128: 2005-06 | M128: 2006
B129: dms_fy9 | C129: 2013-14 | D129: 2014 | E129: dms_cy9 | F129: dms_frcp_fy9 | G129: 2023-24 | H129: 2024 | I129: dms_crcp_cy9 | L129: 2006-07 | M129: 2007
B130: dms_fy10 | C130: 2014-15 | D130: 2015 | E130: dms_cy10 | F130: dms_frcp_fy10 | G130: 2024-25 | H130: 2025 | I130: dms_crcp_cy10 | L130: 2007-08 | M130: 2008
B131: dms_fy11 | C131: 2015-16 | D131: 2016 | E131: dms_cy11 | F131: dms_frcp_fy11 | G131: 2025-26 | H131: 2026 | I131: dms_crcp_cy11 | L131: 2008-09 | M131: 2009
B132: dms_fy12 | C132: 2016-17 | D132: 2017 | E132: dms_cy12 | F132: dms_frcp_fy12 | G132: 2026-27 | H132: 2027 | I132: dms_crcp_cy12 | L132: 2009-10 | M132: 2010
B133: dms_fy13 | C133: 2017-18 | D133: 2018 | E133: dms_cy13 | F133: dms_frcp_fy13 | G133: 2027-28 | H133: 2028 | I133: dms_crcp_cy13 | L133: 2010-11 | M133: 2011
B134: dms_fy14 | C134: 2018-19 | D134: 2019 | E134: dms_cy14 | F134: dms_frcp_fy14 | G134: 2028-29 | H134: 2029 | I134: dms_crcp_cy14 | L134: 2011-12 | M134: 2012
B135: dms_fy15 | C135: 2019-20 | D135: 2020 | E135: dms_cy15 | F135: dms_frcp_fy15 | G135: 2029-30 | H135: 2030 | I135: dms_crcp_cy15 | L135: 2012-13 | M135: 2013
B136: dms_fy16 | C136: 2020-21 | D136: 2021 | E136: dms_cy16 | L136: 2013-14 | M136: 2014
B137: dms_fy17 | C137: 2021-22 | D137: 2022 | E137: dms_cy17 | L137: 2014-15 | M137: 2015
B138: dms_fy18 | C138: 2022-23 | D138: 2023 | E138: dms_cy18 | L138: 2015-16 | M138: 2016
B139: dms_fy19 | C139: 2023-24 | D139: 2024 | E139: dms_cy19 | L139: 2016-17 | M139: 2017
B140: dms_fy20 | C140: 2024-25 | D140: 2025 | E140: dms_cy20 | L140: 2017-18 | M140: 2018
L141: 2018-19 | M141: 2019
L142: 2019-20 | M142: 2020
L143: 2020-21 | M143: 2021
L144: 2021-22 | M144: 2022
L145: 2022-23 | M145: 2023
L146: 2023-24 | M146: 2024
L147: 2024-25 | M147: 2025
L148: 2025-26 | M148: 2026
L149: 2026-27 | M149: 2027
L150: 2027-28 | M150: 2028
L151: 2028-29 | M151: 2029
L152: 2029-30 | M152: 2030
L153: 2030-31 | M153: 2031
L154: 2031-32 | M154: 2032
L155: 2032-33 | M155: 2033
L156: 2033-34 | M156: 2034
L157: 2034-35 | M157: 2035
L158: 2035-36 | M158: 2036

Sheet Instructions
B2: =CONCATENATE(dms_Segment," Network Service Provider") -> Distribution Network Service Provider
B3: Annual Reporting RIN Template
C4: =CONCATENATE("This template is to be used by ",dms_TradingName," to fulfil its reporting obligations to the AER.") -> This template is to be used by Powercor Australia to fulfil its reporting obligations to the AER.
C5: INSTRUCTIONS
C6: Complete the Business & other details worksheet before entering data or values in any other worksheets. The Business & other details worksheet is linked to other worksheets within the workbook and automatically generates certain column headings and conditional formatting.
C8: Identifying CONFIDENTIAL INFORMATION: Please use the macro at the top of each worksheet to identify confidential information.
C9: -Do this by selecting the cell or cells that contain confidential information and then run the Mark selected cells as CONFIDENTIAL macro. This will format the cells a specific colour that is identified by the AER's database which in turn marks that information as confidential. -To reverse this, select the cell or cells and run the Return cells to NON-CONFIDENTIAL macro
C11: UNITS OF MEASURE All amounts are to be unrounded and reported in nominal terms on a one for one basis: that is 1000 is to be entered as '1000'. Applicable units of measure may be identified in the table column headings or row descriptors.
C13: COLOUR CODING OF INPUT / NON-INPUT CELLS:
D14: Yellow = Input cell (mandatory)
D15: Darker yellow = input cell (mandatory)
D16: Orange = input cell (if data available)
D17: Grey = Not applicable/No inputs required
D18: PLEASE DO NOT ENTER TEXT into cells that are to contain numeric data.
C21: WORKSHEET NAVIGATION Many tables in the worksheets have been "grouped" to allow for easy navigation. To ungroup or group data use the outline symbols in the left margin of excel (for Row groupings) or above the columns (for column groupings).
C23: RETURNING COMPLETED RESPONSES Please return four (4) files - using the locked template - to the AER: 1. A confidential version which must contain a complete set of all responses with confidential information marked using the Mark selected cells CONFIDENTIAL macro. 2. An actual and an estimate version with confidential information marked using the Mark selection CONFIDENTIAL macro and which has been completed using the locked template file provided by the AER. 3. A public version with confidential information either removed completely or aggregated in some form together with writtten consent to disclose the public version of the response. Use the drop down box on the Business and other details worksheet to identify the file as either confidential ('consolidated') or public. If the confidential and public versions of the consolidated file are exactly the same, only the public version of the file needs to be submitted to the AER.
C25: SUBMITTING AMENDED DATA TO THE AER If an NSP wishes to correct data previously submitted to the AER it should resubmit that data using the original completed submission as the starting point. Please make any necessary changes to the data. Data that is not being amended should be left unchanged. NSPs must identify the reason for the amendments in the Amendment Reason box on the Business and other details worksheet. NSPs may provide further details regarding any amendments in the Amendments worksheet. .
C26: NSP may use Amended Data macro to highlight cells that contain amended data. NB: if data is also CONFIDENTIAL, re-apply the Confidentiality macro after applying the Amended macro
C27: Please resubmit two (2) files - a confidential version and a public version of the amended submission to the AER

Sheet Contents
B1: REGULATORY REPORTING STATEMENT
B2: =dms_TradingName -> Powercor Australia
B3: =CONCATENATE("Benchmarking RIN response ",CRY) -> Benchmarking RIN response 2017
B5: CONTENTS
B12: 3. ECONOMIC BENCHMARKING

Sheet Business & other details
B1: REGULATORY REPORTING STATEMENT
B2: =dms_TradingName -> Powercor Australia
B3: =CONCATENATE("Benchmarking RIN response ",CRY) -> Benchmarking RIN response 2017
B4: BUSINESS & OTHER DETAILS
B7: Instructions
B8: Complete the following business details regulatory template before entering data or values in any other regulatory template. This regulatory template is linked to other cells within the spreadsheet and automatically generates column headings and conditional formatting to distinguish business specific input and non-input cells.
B10: SUBMISSION PARTICULARS INPUT SHEETS
B12: ENTITY DETAILS
B14: Short name | C14: Powercor Australia | F14: Select business name from drop down list first
B15: ACN / ABN | C15: =INDEX(dms_ABN_List,MATCH(dms_TradingName,dms_TradingName_List)) -> 89064651109
B18: Business address | C18: Address 1 | E18: =INDEX(dms_Addr1_List,MATCH(dms_TradingName,dms_TradingName_List)) -> 40 Market Street
D19: Address 2 | E19: =IF(ISBLANK(INDEX(dms_Addr2_List,MATCH(dms_TradingName,dms_TradingName_List))),"",INDEX(dms_Addr2_List,MATCH(dms_TradingName,dms_TradingName_List))) -> 
C20: Suburb | E20: =INDEX(dms_Suburb_List,MATCH(dms_TradingName,dms_TradingName_List)) -> MELBOURNE
D21: State | E21: =INDEX(dms_State_List,MATCH(dms_TradingName,dms_TradingName_List)) -> Vic | F21: p/code | G21: =INDEX(dms_PostCode_List,MATCH(dms_TradingName,dms_TradingName_List)) -> 3000
B23: Postal address | C23: Address 1 | E23: =INDEX(dms_PAddr1_List,MATCH(dms_TradingName,dms_TradingName_List)) -> Locked bag 14090
D24: Address 2 | E24: =IF(ISBLANK(INDEX(dms_PAddr2_List,MATCH(dms_TradingName,dms_TradingName_List))),"",INDEX(dms_PAddr2_List,MATCH(dms_TradingName,dms_TradingName_List))) -> 
C25: Suburb | E25: =INDEX(dms_PSuburb_List,MATCH(dms_TradingName,dms_TradingName_List)) -> MELBOURNE
D26: State | E26: =INDEX(dms_PState_List,MATCH(dms_TradingName,dms_TradingName_List)) -> VIC | F26: p/code | G26: =INDEX(dms_PPostCode_List,MATCH(dms_TradingName,dms_TradingName_List)) -> 8001
B29: Contact name/s | C29: Mark de Villiers
B30: Contact phone/s | C30: (03) 9683 4907
B31: Contact email address/s | C31: mdevilliers@powercor.com.au
B33: REGULATORY CONTROL PERIODS
B35: Forthcoming regulatory control period | C35: 2019-20 | D35: =dms_FRCP_y2 -> 2020 | E35: =dms_FRCP_y3 -> 2021 | F35: =dms_FRCP_y4 -> 2022 | G35: =dms_FRCP_y5 -> 2023
C36: =dms_FRCP_y6 -> 2024 | D36: =dms_FRCP_y7 -> 2025 | E36: =dms_FRCP_y8 -> 2026 | F36: =dms_FRCP_y9 -> 2027 | G36: =dms_FRCP_y10 -> 2028
B39: Current regulatory control period | C39: =dms_CRCP_FirstYear_Result -> 2014 | D39: =IF(dms_RPT="financial",VALUE(LEFT(CRCP_y1,4)+1)&"-"&TEXT(MID(CRCP_y1,3,2)+2,"00"),VALUE(LEFT(CRCP_y1,4)+1)) -> 2015 | E39: =IF(dms_RPT="financial",VALUE(LEFT(CRCP_y1,4)+2)&"-"&TEXT(VALUE(MID(CRCP_y1,3,2)+3),"00"),VALUE(LEFT(CRCP_y1,4)+2)) -> 2016 | F39: =IF(dms_RPT="financial",VALUE(LEFT(CRCP_y1,4)+3)&"-"&TEXT(MID(CRCP_y1,3,2)+4,"00"),VALUE(LEFT(CRCP_y1,4)+3)) -> 2017 | G39: =IF(dms_RPT="financial",VALUE(LEFT(CRCP_y1,4)+4)&"-"&TEXT(MID(CRCP_y1,3,2)+5,"00"),VALUE(LEFT(CRCP_y1,4)+4)) -> 2018 | P39: =IF(dms_RPT="financial",VALUE(LEFT(CRCP_y1,4)+13)&"-"&TEXT(MID(CRCP_y1,3,2)+14,"00"),VALUE(LEFT(CRCP_y1,4)+13)) -> 2027 | Q39: =IF(dms_RPT="financial",VALUE(LEFT(CRCP_y1,4)+14)&"-"&TEXT(MID(CRCP_y1,3,2)+15,"00"),VALUE(LEFT(CRCP_y1,4)+14)) -> 2028 | R39: =IF(dms_RPT="financial",VALUE(LEFT(CRCP_y1,4)+15)&"-"&TEXT(MID(CRCP_y1,3,2)+16,"00"),VALUE(LEFT(CRCP_y1,4)+15)) -> 2029
C40: =IF(dms_RPT="financial",VALUE(LEFT(CRCP_y1,4)+5)&"-"&TEXT(MID(CRCP_y1,3,2)+6,"00"),VALUE(LEFT(CRCP_y1,4)+5)) -> 2019 | D40: =IF(dms_RPT="financial",VALUE(LEFT(CRCP_y1,4)+6)&"-"&TEXT(MID(CRCP_y1,3,2)+7,"00"),VALUE(LEFT(CRCP_y1,4)+6)) -> 2020 | E40: =IF(dms_RPT="financial",VALUE(LEFT(CRCP_y1,4)+7)&"-"&TEXT(MID(CRCP_y1,3,2)+8,"00"),VALUE(LEFT(CRCP_y1,4)+7)) -> 2021 | F40: =IF(dms_RPT="financial",VALUE(LEFT(CRCP_y1,4)+8)&"-"&TEXT(MID(CRCP_y1,3,2)+9,"00"),VALUE(LEFT(CRCP_y1,4)+8)) -> 2022 | G40: =IF(dms_RPT="financial",VALUE(LEFT(CRCP_y1,4)+9)&"-"&TEXT(MID(CRCP_y1,3,2)+10,"00"),VALUE(LEFT(CRCP_y1,4)+9)) -> 2023
C41: =IF(dms_RPT="financial",VALUE(LEFT(CRCP_y1,4)+10)&"-"&TEXT(MID(CRCP_y1,3,2)+11,"00"),VALUE(LEFT(CRCP_y1,4)+10)) -> 2024 | D41: =IF(dms_RPT="financial",VALUE(LEFT(CRCP_y1,4)+11)&"-"&TEXT(MID(CRCP_y1,3,2)+10,"00"),VALUE(LEFT(CRCP_y1,4)+11)) -> 2025 | E41: =IF(dms_RPT="financial",VALUE(LEFT(CRCP_y1,4)+12)&"-"&TEXT(MID(CRCP_y1,3,2)+11,"00"),VALUE(LEFT(CRCP_y1,4)+12)) -> 2026 | F41: =IF(dms_RPT="financial",VALUE(LEFT(CRCP_y1,4)+13)&"-"&TEXT(MID(CRCP_y1,3,2)+14,"00"),VALUE(LEFT(CRCP_y1,4)+13)) -> 2027 | G41: =IF(dms_RPT="financial",VALUE(LEFT(CRCP_y1,4)+14)&"-"&TEXT(MID(CRCP_y1,3,2)+15,"00"),VALUE(LEFT(CRCP_y1,4)+14)) -> 2028
B44: Previous regulatory control period | C44: =IF(dms_RPT="financial",VALUE(LEFT(PRCP_y2,4)-1)&"-"&TEXT(VALUE(MID(PRCP_y2,3,2)),"00"),VALUE(LEFT(PRCP_y2,4)-1)) -> 2009 | D44: =IF(dms_RPT="financial",VALUE(LEFT(PRCP_y3,4)-1)&"-"&TEXT(VALUE(MID(PRCP_y3,3,2)),"00"),VALUE(LEFT(PRCP_y3,4)-1)) -> 2010 | E44: =IF(dms_RPT="financial",VALUE(LEFT(PRCP_y4,4)-1)&"-"&TEXT(VALUE(MID(PRCP_y4,3,2)),"00"),VALUE(LEFT(PRCP_y4,4)-1)) -> 2011 | F44: =IF(dms_RPT="financial",VALUE(LEFT(PRCP_y5,4)-1)&"-"&TEXT(VALUE(RIGHT(PRCP_y5,2)-1),"00"),VALUE(LEFT(PRCP_y5,4)-1)) -> 2012 | G44: =IF(dms_RPT="financial",VALUE(LEFT(CRCP_y1,4)-1)&"-"&TEXT(VALUE(RIGHT(CRCP_y1,2)-1),"00"),VALUE(LEFT(CRCP_y1,4)-1)) -> 2013
B48: Commencing regulatory year | C48: 2017 | D48: CRY
B50: Last completed regulatory year | C50: 2017 | D50: dms_FinalYear
B56: Source | C56: Reporting | E56: Please select the correct submission type from the dropdown list.
B57: Data quality (actual, estimate, public, consolidated) | C57: Public | E57: Use Consolidated for Consolidated Confidential version Use Public for Consolidated Public version
B58: Amended RIN submission - amendment reason | C58: Updated on 7 December 2018 - see D19/5923 (AB)
B59: Submission Date | C59: 30/04/2018 | D59: dms_SubmissionDate | E59: Please enter date this file submitted to AER (dd/mm/yyyy)
B60: EBSS - First application of scheme in forthcoming period? | C60: No
B61: Sector | C61: =INDEX(dms_Sector_List,MATCH(dms_TradingName,dms_TradingName_List)) -> Electricity | D61: dms_Sector | E61: =INDEX(dms_Sector_List,MATCH(dms_TradingName,dms_TradingName_List))
B62: Segment | C62: =INDEX(dms_Segment_List,MATCH(dms_TradingName,dms_TradingName_List)) -> Distribution | D62: dms_Segment | E62: =INDEX(dms_Segment_List,MATCH(dms_TradingName,dms_TradingName_List))
B63: Regulatory Year Ending | C63: =IF(dms_MultiYear_Flag=1,LEFT(dms_Specified_FinalYear,2)&RIGHT(dms_Specified_FinalYear,2),INDEX(dms_RYE_Formula_Result,MATCH(dms_Model,dms_Model_List))) -> 2017 | D63: dms_RYE | E63: =IF(dms_MultiYear_Flag=1,LEFT(dms_Specified_FinalYear,2)&RIGHT(dms_Specified_FinalYear,2),INDEX(dms_RYE_Formula_Result,MATCH(dms_Model,dms_Model_List)))
B64: Reporting Period Type | C64: =INDEX(dms_RPT_List,MATCH(dms_TradingName,dms_TradingName_List)) -> Calendar | D64: dms_RPT | E64: =INDEX(dms_RPT_List,MATCH(dms_TradingName,dms_TradingName_List))
B65: Model or RIN Type | C65: EB | D65: dms_Model | E65: Drop down selection
B66: Security Classification | C66: Public | D66: dms_Classification | E66: Always Public
B67: Template - version no. | C67: 5 | D67: dms_TemplateNumber
B68: Dollar $ real month | C68: =INDEX(dms_RPTMonth_List,MATCH(dms_TradingName,dms_TradingName_List)) -> December | D68: dms_RPTMonth | E68: =INDEX(dms_RPTMonth_List,MATCH(dms_TradingName,dms_TradingName_List))
B69: Dollar $ real (the last month before the FRCP_y1) | C69: =CONCATENATE(dms_RPTMonth)&" "&VALUE((LEFT(dms_CRCP_FinalYear_Result,2)&RIGHT(dms_CRCP_FinalYear_Result,2))) -> December 2017 | D69: dms_DollarReal | E69: =IF(SUM(dms_SingleYear_Model)>0,CONCATENATE(dms_RPTMonth)&" "&VALUE((LEFT(CRY,2))&RIGHT(CRY,2)),CONCATENATE(dms_RPTMonth)&" "&VALUE((LEFT(dms_CRCP_FinalYear_Result,2)&RIGHT(dms_CRCP_FinalYear_Result,2))))
B70: Dollar $ real previous year (PRCP_y5) | C70: June 2014 | D70: dms_DollarReal_Prev | E70: =IF(SUM(dms_SingleYear_Model)>0,CONCATENATE(dms_RPTMonth)&" "&VALUE(((LEFT(CRY,2))&RIGHT(CRY,2))-1),CONCATENATE(dms_RPTMonth)&" "&VALUE(((LEFT(dms_CRCP_FirstYear_Result,2)&RIGHT(dms_CRCP_FirstYear_Result,2))))-1)
B71: Form of control | C71: =INDEX(dms_FormControl_List,MATCH(dms_TradingName,dms_TradingName_List)) -> Revenue cap | D71: dms_FormControl | E71: =INDEX(dms_FormControl_List,MATCH(dms_TradingName,dms_TradingName_List))
B72: Calendar Year for table 3.6 data | C72: =IF(dms_RPT="Calendar",dms_RYE,VALUE(dms_RYE)-1) -> 2017 | D72: dms_0306_Year | E72: =IF(dms_RPT="Calendar",dms_RYE,VALUE(dms_RYE)-1)
B73: RIN response - version no. | C73: 1 | D73: dms_RINversion
B74: Jurisdiction | C74: =INDEX(dms_JurisdictionList,MATCH(dms_TradingName,dms_TradingName_List)) -> Vic | D74: dms_Jurisdiction | E74: =INDEX(dms_JurisdictionList,MATCH(dms_TradingName,dms_TradingName_List))
B75: Backcast Multiyear EB, CA or ARR? | C75: 0 | D75: dms_MultiYear_Flag | E75: 1=y, 0-n
C76: 2013 | D76: dms_Specified_FinalYear | E76: The result here is returned to dms_CRCP_FinalYear_Result if dms_MultiYear_Flag is set to 1
B77: Single Year Model T/F | C77: =IF(dms_Model="EB",1,0) -> 1 | D77: dms_EB
C78: =IF(dms_Model="CA",1,0) -> 0 | D78: dms_CA | E78: =dms_SingleYear_Model
C79: =IF(dms_Model="ARR",1,0) -> 0 | D79: dms_ARR
B80: Single Year Final Year Reference | C80: CRY | D80: dms_SingleYear_FinalYear_Ref | E80: This is the reference for EB, CA & ARR RINs
B81: Single Year Final Year Result | C81: =INDIRECT(dms_SingleYear_FinalYear_Ref) -> 2017 | D81: dms_SingleYear_FinalYear_Result | E81: =INDIRECT(dms_SingleYear_FinalYear_Ref) | I81: Formula errors OK
B82: FRCP length in years | C82: =INDEX(dms_FRCPlength_List,MATCH(dms_TradingName,dms_TradingName_List)) -> 5 | D82: dms_FRCPlength_Num | E82: =INDEX(dms_FRCPlength_List,MATCH(dms_TradingName,dms_TradingName_List))
B83: Multi Year Final Year Reference | C83: =INDEX(dms_FinalYear_List,MATCH(dms_FRCPlength_Num,dms_FRCPlength_Num_List)) -> dms_FRCP_y5 | D83: dms_MultiYear_FinalYear_Ref | E83: =INDEX(dms_FinalYear_List,MATCH(dms_FRCPlength_Num,dms_FRCPlength_Num_List))
B84: Multi Year Final Year Result | C84: =IF(dms_MultiYear_Flag=0,INDIRECT(dms_MultiYear_FinalYear_Ref),dms_Specified_FinalYear) -> 2023 | D84: dms_MultiYear_FinalYear_Result | E84: =IF(dms_MultiYear_Flag=0,INDIRECT(dms_MultiYear_FinalYear_Ref),dms_Specified_FinalYear) | I84: Formula errors OK
B85: PRCP length in years | C85: =INDEX(dms_PRCPlength_List,MATCH(dms_TradingName,dms_TradingName_List)) -> 0 | D85: dms_PRCPlength_Num | E85: =INDEX(dms_PRCPlength_List,MATCH(dms_TradingName,dms_TradingName_List))
B86: CRCP length in years | C86: =INDEX(dms_CRCPlength_List,MATCH(dms_TradingName,dms_TradingName_List)) -> 5 | D86: dms_CRCPlength_Num | E86: =INDEX(dms_CRCPlength_List,MATCH(dms_TradingName,dms_TradingName_List))
B87: CRCP Final Year Reference | C87: =INDEX(dms_CFinalYear_List,MATCH(dms_CRCPlength_Num,dms_CRCPlength_Num_List)) -> CRCP_y5 | D87: dms_CRCP_FinalYear_Ref | E87: =INDEX(dms_CFinalYear_List,MATCH(dms_CRCPlength_Num,dms_CRCPlength_Num_List))
B88: CRCP First Year Result | C88: =INDEX(dms_CRCP_years,MATCH(dms_CRCPlength_Num,dms_CRCP_index)) -> 2014 | D88: dms_CRCP_FirstYear_Result | E88: =INDEX(dms_CRCP_years,MATCH(dms_CRCPlength_Num,dms_CRCP_index))
B89: CRCP Final Year Result | C89: =IF(dms_MultiYear_Flag=0,(IF(SUM(dms_SingleYear_Model)>0,CRY,dms_CRCP_yZ)),dms_Specified_FinalYear) -> 2017 | D89: dms_CRCP_FinalYear_Result | E89: =IF(dms_MultiYear_Flag=0,(IF(SUM(dms_SingleYear_Model)>0,CRY,dms_CRCP_yZ)),dms_Specified_FinalYear)
B90: Table 6.6.3 - Public lighting repair - no. business days | C90: =INDEX(dms_663_List,MATCH(dms_TradingName,dms_TradingName_List)) -> 2 | D90: dms_663
B91: Distribution Determination Reference | C91: =INDEX(dms_DeterminationRef_List,MATCH(dms_TradingName,dms_TradingName_List)) -> 2016-20 Distribution Determination | D91: dms_DeterminationRef
B92: Backcast templates only - unit of measure | C92: $0s | D92: dms_Backcast_UOM | E92: If the cover sheet is for Backcast data ensure to apply dms_Backcast_UOM named range to this field. Otherwise, do not apply this named range.
B93: EB/CA Unit of Measure for Monetary Values | C93: $0s | D93: dms_dollar_nom_UOM | E93: If the cover sheet is attached to an EB files make sure this field is set
B94: Is this Submission File a Subset File | C94: NO | D94: dms_Partial
B95: discard this record? | C95: NO | D95: dms_DISCARD | E95: If record is to be discarded from DB set this flag to YES
B96: CBD Feeder for this business | C96: =INDEX(dms_CBD_flag,MATCH(dms_TradingName,dms_TradingName_List)) -> 0 | D96: dms_CBD_flag_NSP
B97: Urban Feeder for this business | C97: =INDEX(dms_Urban_flag,MATCH(dms_TradingName,dms_TradingName_List)) -> 0 | D97: dms_Urban_flag_NSP
B98: Short rural Feeder for this business | C98: =INDEX(dms_ShortRural_flag,MATCH(dms_TradingName,dms_TradingName_List)) -> YES | D98: dms_ShortRural_flag_NSP
B99: Long rural Feeder for this business | C99: =INDEX(dms_LongRural_flag,MATCH(dms_TradingName,dms_TradingName_List)) -> YES | D99: dms_LongRural_flag_NSP
B102: USES NAMED RANGES FLAG | C102: yes | D102: dms_Defined_Names_Used
B104: REGULATORY YEARS FOR MULTI RYE SUBMISSIONS
B105: Multiple RYE flag | C105: NO | D105: dms_Multi_RYE_flag
C106: Manually specify RYE | D106: Named ranges to apply
C107: 2013 | D107: dms_RYE_01
C108: 2014 | D108: dms_RYE_02
C109: 2015 | D109: dms_RYE_03
C110: 2016 | D110: dms_RYE_04
C111: 2017 | D111: dms_RYE_05

Sheet 3.1 Revenue
B1: REGULATORY REPORTING STATEMENT
B2: =dms_TradingName -> Powercor Australia
B3: =CONCATENATE("Benchmarking RIN response ",CRY) -> Benchmarking RIN response 2017
B4: 3.1 REVENUE
B6: There are THREE tables on this worksheet. Each table has been grouped for ease of navigation. See the Instructions sheet on how to group or ungroup tables.
B8: 3.1.1 - REVENUE GROUPING BY CHARGEABLE QUANTITY
C9: Standard control services | D9: Alternative control services
C10: REVENUE ($0's)
C11: =CRY -> 2017 | D11: =CRY -> 2017
A12: DREV0101 | B12: Revenue from Fixed Customer Charges | C12: 139242350.7
A13: DREV0102 | B13: Revenue from Energy Delivery charges where time of use is not a determinant | C13: 140285264.9
A14: DREV0103 | B14: Revenue from On–Peak Energy Delivery charges | C14: 188175142
A15: DREV0104 | B15: Revenue from Shoulder period Energy Delivery Charges | C15: 421591.5
A16: DREV0105 | B16: Revenue from Off–Peak Energy Delivery charges | C16: 52694468.54
A17: DREV0106 | B17: Revenue from controlled load customer charges | C17: 6145704.83
A18: DREV0107 | B18: Revenue from unmetered supplies | C18: 6063645.18
A19: DREV0108 | B19: Revenue from Contracted Maximum Demand charges | C19: 0
A20: DREV0109 | B20: Revenue from Measured Maximum Demand charges | C20: 95540714.06
A21: DREV0110 | B21: Revenue from metering charges | D21: 74082586.58
A22: DREV0111 | B22: Revenue from connection charges | D22: 12588180.4
A23: DREV0112 | B23: Revenue from public lighting charges | D23: 8399881.29
A24: DREV0113 | B24: Revenue from other Sources | D24: 9513679.14
A25: DREV01 | B25: Total revenue by chargeable quantity | C25: =SUM(C12:C24) -> 628568881.7 | D25: =SUM(D12:D24) -> 104584327.4
B28: 3.1.2 - REVENUE GROUPING BY CUSTOMER TYPE OR CLASS
C29: Standard control services | D29: Alternative control services
C30: REVENUE ($0's)
C31: =CRY -> 2017 | D31: =CRY -> 2017
A32: DREV0201 | B32: Revenue from residential Customers | C32: 262911471.9
A33: DREV0202 | B33: Revenue from Non residential customers not on demand tariffs | C33: 78835977.36
A34: DREV0203 | B34: Revenue from Non-residential low voltage demand tariff customers | C34: 222214630.2
A35: DREV0204 | B35: Revenue from Non-residential high voltage demand tariff customers | C35: 58543157.03
A36: DREV0205 | B36: Revenue from unmetered supplies | C36: 6063645.18 | D36: 8399881.29
A37: DREV0206 | B37: Revenue from Other Customers | C37: 0 | D37: 96184446.12
A38: DREV02 | B38: Total revenue by customer class | C38: =SUM(C32:C37) -> 628568881.7 | D38: =SUM(D32:D37) -> 104584327.4
B40: 3.1.3 - REVENUE (penalties) ALLOWED (deducted) THROUGH INCENTIVE SCHEMES
C41: Standard control services | D41: Alternative control services
C42: REVENUE ($0's)
C43: =CRY -> 2017 | D43: =CRY -> 2017
A44: DREV0301 | B44: EBSS | C44: 4548628 | D44: 0
A45: DREV0302 | B45: STPIS | C45: 23083177 | D45: 0
A46: DREV0303 | B46: F-Factor | C46: 1420000 | D46: 0
A47: DREV0304 | B47: S-Factor True up | C47: -1978689 | D47: 0
A48: DREV0305 | B48: Other | C48: 0 | D48: 0
A49: DREV03 | B49: Total revenue of incentive schemes | C49: =SUM(C44:C48) -> 27073116 | D49: =SUM(D44:D48) -> 0

Sheet 3.2 Operating expenditure
B1: REGULATORY REPORTING STATEMENT
B2: =dms_TradingName -> Powercor Australia
B3: =CONCATENATE("Benchmarking RIN response ",CRY) -> Benchmarking RIN response 2017
B4: 3.2 OPERATING EXPENDITURE
B6: There are THREE tables on this worksheet. Each table has been grouped for ease of navigation. See the Instructions sheet on how to group or ungroup tables.
B8: Instructions
B9: =CONCATENATE("In table 3.2.1, please list each opex category reported in response to ",dms_TradingName, "'s annual reporting RIN and report opex for each category.") -> In table 3.2.1, please list each opex category reported in response to Powercor Australia's annual reporting RIN and report opex for each category.
B12: 3.2.1 - OPEX CATEGORIES
B13: CURRENT OPEX CATEGORIES AND COST ALLOCATIONS
C14: Standard control services | D14: Alternative control services
C15: EXPENDITURE ($0's)
C16: =CRY -> 2017 | D16: =CRY -> 2017
A17: DOPEX0101 | B17: Maintenance | C17: ='[1]3.2 Operating expenditure'!C14 -> 55405936.39
A18: DOPEX0102 | B18: Vegetation Management | C18: 32199734
A19: DOPEX0103 | B19: Emergency | C19: ='[1]3.2 Operating expenditure'!$C$16 -> 28097966.86
A20: DOPEX0104 | B20: Overheads | C20: 98376123
A21: DOPEX0105 | B21: Public Lighting | D21: 4446484
A22: DOPEX0106 | B22: Connection Services | D22: 15461505
A23: DOPEX0107 | B23: Metering Services | D23: 14788605
A24: DOPEX0108 | B24: Ancillary Network Services | D24: 5155719
A25: DOPEX0109
A26: DOPEX0110
A27: DOPEX0111
A28: DOPEX0112
A29: DOPEX0113
A30: DOPEX0114
A31: DOPEX0115
A32: DOPEX0116
A33: DOPEX0117
A34: DOPEX0118
A35: DOPEX0119
A36: DOPEX0120
A37: DOPEX0121
A38: DOPEX0122
A39: DOPEX0123
A40: DOPEX0124
A41: DOPEX0125
A42: DOPEX0126
A43: DOPEX0127
A44: DOPEX0128
A45: DOPEX0129
A46: DOPEX0130
A47: DOPEX0131
A48: DOPEX0132
A49: DOPEX0133
A50: DOPEX0134
A51: DOPEX0135
A52: DOPEX0136
A53: DOPEX0137
A54: DOPEX0138
A55: DOPEX0139
A56: DOPEX0140
A57: DOPEX0141
A58: DOPEX0142
A59: DOPEX01 | B59: Total opex | C59: =SUM(C17:C58) -> 214079760.2 | D59: =SUM(D17:D58) -> 39852313
B63: 3.2.2 - OPEX CONSISTENCY
B64: CURRENT COST ALLOCATION APPROACH
C65: Standard control services | D65: Alternative control services
C66: EXPENDITURE ($0's)
C67: =CRY -> 2017 | D67: =CRY -> 2017
A68: DOPEX0201 | B68: Opex for network services | C68: =C59-C73 -> 213705124.8
A69: DOPEX0202 | B69: Opex for metering | D69: 14788605
A70: DOPEX0203 | B70: Opex for connection services | D70: 15461505
A71: DOPEX0204 | B71: Opex for public lighting | D71: 4446484
A72: DOPEX0205 | B72: Opex for amounts payable for easement levy or similar direct charges on DNSP
A73: DOPEX0206 | B73: Opex for transmission connection point planning | C73: 374635.4
B77: 3.2.4 - OPEX FOR HIGH VOLTAGE CUSTOMERS
C78: End user costs (not standard control services)
A79: DOPEX0401 | B79: Opex for high voltage customers | C79: 243512.77

Sheet 3.2.3 Provisions
B1: REGULATORY REPORTING STATEMENT
B2: =dms_TradingName -> Powercor Australia
B3: =CONCATENATE("Benchmarking RIN response ",CRY) -> Benchmarking RIN response 2017
B4: 3.2 OPERATING EXPENDITURE
B6: The is ONE table on this worksheet. Each Provision has been grouped for ease of navigation. See the Instructions sheet on how to group and ungroup tables.
B8: Instructions
B9: =CONCATENATE("In table 3.2.3, please list each opex category reported in response to ",dms_TradingName, "'s annual reporting RIN and report opex for each category.") -> In table 3.2.3, please list each opex category reported in response to Powercor Australia's annual reporting RIN and report opex for each category.
B11: 3.2.3 - PROVISIONS
C12: VALUE ($0's)
C13: =CRY -> 2017
A14: DOPEX03A | B14: Provision for Uninsured Losses
B15: Provision for claims relating to damages sustained from Network assets.
A16: DOPEX0301A | B16: Opening balance (the carrying amount at the beginning of the period) | C16: -1447444
B17: Additional provisions made in the period, including increases to existing provisions
A18: DOPEX0302A | B18: Opex component | C18: -
A19: DOPEX0303A | B19: Capex component | C19: -
A20: DOPEX0304A | B20: Other component | C20: -
B21: Amounts used (that is, incurred and charged against the provision) during the period
A22: DOPEX0305A | B22: Opex component | C22: 550000
A23: DOPEX0306A | B23: Capex component | C23: -
A24: DOPEX0307A | B24: Other component | C24: -
B25: Unused amounts reversed during the period
A26: DOPEX0308A | B26: Opex component | C26: 163986
A27: DOPEX0309A | B27: Capex component | C27: -
A28: DOPEX0310A | B28: Other component | C28: -
B29: The increase during the period in the discounted amount arising from the passage of time and the effect of any change in the discount rate
A30: DOPEX0311A | B30: Opex component | C30: -
A31: DOPEX0312A | B31: Capex component | C31: -
A32: DOPEX0313A | B32: Other component | C32: -
A33: DOPEX0314A | B33: Closing balance (carrying amount at the end of the period) | C33: -733458
A34: DOPEX03B | B34: Provision for Customer Refunds
B35: Represents the present value of the best estimate of the future sacrifice of economic benefits that will be required to settle claims for billings adjustments that relate to the prior year
A36: DOPEX0301B | B36: Opening balance (the carrying amount at the beginning of the period) | C36: -820000
B37: Additional provisions made in the period, including increases to existing provisions
A38: DOPEX0302B | B38: Opex component | C38: -3310000
A39: DOPEX0303B | B39: Capex component
A40: DOPEX0304B | B40: Other component | C40: -
B41: Amounts used (that is, incurred and charged against the provision) during the period
A42: DOPEX0305B | B42: Opex component | C42: -
A43: DOPEX0306B | B43: Capex component
A44: DOPEX0307B | B44: Other component | C44: -
B45: Unused amounts reversed during the period
A46: DOPEX0308B | B46: Opex component | C46: 2670000
A47: DOPEX0309B | B47: Capex component
A48: DOPEX0310B | B48: Other component | C48: -
B49: The increase during the period in the discounted amount arising from the passage of time and the effect of any change in the discount rate
A50: DOPEX0311B | B50: Opex component | C50: -
A51: DOPEX0312B | B51: Capex component
A52: DOPEX0313B | B52: Other component | C52: -
A53: DOPEX0314B | B53: Closing balance (carrying amount at the end of the period) | C53: -1460000
A54: DOPEX03C | B54: Provision for Employee Entitlements
B55: Provision made to meet the future annual leave and long service leave entitlements of employees.
A56: DOPEX0301C | B56: Opening balance (the carrying amount at the beginning of the period) | C56: -57648599
B57: Additional provisions made in the period, including increases to existing provisions
A58: DOPEX0302C | B58: Opex component | C58: -4153174
A59: DOPEX0303C | B59: Capex component | C59: -14492114.03
A60: DOPEX0304C | B60: Other component | C60: -
B61: Amounts used (that is, incurred and charged against the provision) during the period
A62: DOPEX0305C | B62: Opex component | C62: 7358143
A63: DOPEX0306C | B63: Capex component | C63: 12197130.54
A64: DOPEX0307C | B64: Other component | C64: -
B65: Unused amounts reversed during the period
A66: DOPEX0308C | B66: Opex component | C66: -
A67: DOPEX0309C | B67: Capex component
A68: DOPEX0310C | B68: Other component | C68: -
B69: The increase during the period in the discounted amount arising from the passage of time and the effect of any change in the discount rate
A70: DOPEX0311C | B70: Opex component | C70: -3477659
A71: DOPEX0312C | B71: Capex component
A72: DOPEX0313C | B72: Other component | C72: -
A73: DOPEX0314C | B73: Closing balance (carrying amount at the end of the period) | C73: -60216272
A74: DOPEX03D | B74: Provision for Doubtful Debt
B75: Provision against doubtful tariff and non-tariff receivables.
A76: DOPEX0301D | B76: Opening balance (the carrying amount at the beginning of the period) | C76: -2200956
B77: Additional provisions made in the period, including increases to existing provisions
A78: DOPEX0302D | B78: Opex component | C78: -1877274
A79: DOPEX0303D | B79: Capex component
A80: DOPEX0304D | B80: Other component | C80: -
B81: Amounts used (that is, incurred and charged against the provision) during the period
A82: DOPEX0305D | B82: Opex component | C82: -
A83: DOPEX0306D | B83: Capex component
A84: DOPEX0307D | B84: Other component | C84: -
B85: Unused amounts reversed during the period
A86: DOPEX0308D | B86: Opex component | C86: 2886200
A87: DOPEX0309D | B87: Capex component
A88: DOPEX0310D | B88: Other component | C88: -
B89: The increase during the period in the discounted amount arising from the passage of time and the effect of any change in the discount rate
A90: DOPEX0311D | B90: Opex component | C90: -
A91: DOPEX0312D | B91: Capex component
A92: DOPEX0313D | B92: Other component | C92: -
A93: DOPEX0314D | B93: Closing balance (carrying amount at the end of the period) | C93: -1192030
A94: DOPEX03E | B94: Provision for Restorations (Vegetation Management)
B95: Represents the future incremental vegetation clearance expenditure associated with network assets.
A96: DOPEX0301E | B96: Opening balance (the carrying amount at the beginning of the period) | C96: -2836539
B97: Additional provisions made in the period, including increases to existing provisions
A98: DOPEX0302E | B98: Opex component | C98: -259259
A99: DOPEX0303E | B99: Capex component
A100: DOPEX0304E | B100: Other component | C100: -
B101: Amounts used (that is, incurred and charged against the provision) during the period
A102: DOPEX0305E | B102: Opex component | C102: 576073
A103: DOPEX0306E | B103: Capex component
A104: DOPEX0307E | B104: Other component | C104: -
B105: Unused amounts reversed during the period
A106: DOPEX0308E | B106: Opex component | C106: -
A107: DOPEX0309E | B107: Capex component
A108: DOPEX0310E | B108: Other component | C108: -
B109: The increase during the period in the discounted amount arising from the passage of time and the effect of any change in the discount rate
A110: DOPEX0311E | B110: Opex component | C110: -
A111: DOPEX0312E | B111: Capex component
A112: DOPEX0313E | B112: Other component | C112: -
A113: DOPEX0314E | B113: Closing balance (carrying amount at the end of the period) | C113: -2519725
A114: DOPEX03F | B114: Provision for Redundancies
B115: Represents an estimate of employee redundancy expenditure.
A116: DOPEX0301F | B116: Opening balance (the carrying amount at the beginning of the period) | C116: -1275856
B117: Additional provisions made in the period, including increases to existing provisions
A118: DOPEX0302F | B118: Opex component | C118: -8015615
A119: DOPEX0303F | B119: Capex component
A120: DOPEX0304F | B120: Other component | C120: -
B121: Amounts used (that is, incurred and charged against the provision) during the period
A122: DOPEX0305F | B122: Opex component | C122: 5152036
A123: DOPEX0306F | B123: Capex component
A124: DOPEX0307F | B124: Other component | C124: -
B125: Unused amounts reversed during the period
A126: DOPEX0308F | B126: Opex component | C126: -
A127: DOPEX0309F | B127: Capex component
A128: DOPEX0310F | B128: Other component | C128: -
B129: The increase during the period in the discounted amount arising from the passage of time and the effect of any change in the discount rate
A130: DOPEX0311F | B130: Opex component | C130: -
A131: DOPEX0312F | B131: Capex component
A132: DOPEX0313F | B132: Other component | C132: -
A133: DOPEX0314F | B133: Closing balance (carrying amount at the end of the period) | C133: -4139434
A134: DOPEX03G | B134: Provision for Environment
B135: The provision records the estimated costs of testing and remediation works at a depot.
A136: DOPEX0301G | B136: Opening balance (the carrying amount at the beginning of the period) | C136: =-326000 -> -326000
B137: Additional provisions made in the period, including increases to existing provisions
A138: DOPEX0302G | B138: Opex component | C138: -354049
A139: DOPEX0303G | B139: Capex component
A140: DOPEX0304G | B140: Other component | C140: -
B141: Amounts used (that is, incurred and charged against the provision) during the period
A142: DOPEX0305G | B142: Opex component | C142: 360049
A143: DOPEX0306G | B143: Capex component
A144: DOPEX0307G | B144: Other component | C144: -
B145: Unused amounts reversed during the period
A146: DOPEX0308G | B146: Opex component | C146: -
A147: DOPEX0309G | B147: Capex component
A148: DOPEX0310G | B148: Other component | C148: -
B149: The increase during the period in the discounted amount arising from the passage of time and the effect of any change in the discount rate
A150: DOPEX0311G | B150: Opex component | C150: -
A151: DOPEX0312G | B151: Capex component
A152: DOPEX0313G | B152: Other component | C152: -
A153: DOPEX0314G | B153: Closing balance (carrying amount at the end of the period) | C153: -320000
A154: DOPEX03H
A156: DOPEX0301H | B156: Opening balance (the carrying amount at the beginning of the period)
B157: Additional provisions made in the period, including increases to existing provisions
A158: DOPEX0302H | B158: Opex component
A159: DOPEX0303H | B159: Capex component
A160: DOPEX0304H | B160: Other component
B161: Amounts used (that is, incurred and charged against the provision) during the period
A162: DOPEX0305H | B162: Opex component
A163: DOPEX0306H | B163: Capex component
A164: DOPEX0307H | B164: Other component
B165: Unused amounts reversed during the period
A166: DOPEX0308H | B166: Opex component
A167: DOPEX0309H | B167: Capex component
A168: DOPEX0310H | B168: Other component
B169: The increase during the period in the discounted amount arising from the passage of time and the effect of any change in the discount rate
A170: DOPEX0311H | B170: Opex component
A171: DOPEX0312H | B171: Capex component
A172: DOPEX0313H | B172: Other component
A173: DOPEX0314H | B173: Closing balance (carrying amount at the end of the period)
A174: DOPEX03I
A176: DOPEX0301I | B176: Opening balance (the carrying amount at the beginning of the period)
B177: Additional provisions made in the period, including increases to existing provisions
A178: DOPEX0302I | B178: Opex component
A179: DOPEX0303I | B179: Capex component
A180: DOPEX0304I | B180: Other component
B181: Amounts used (that is, incurred and charged against the provision) during the period
A182: DOPEX0305I | B182: Opex component
A183: DOPEX0306I | B183: Capex component
A184: DOPEX0307I | B184: Other component
B185: Unused amounts reversed during the period
A186: DOPEX0308I | B186: Opex component
A187: DOPEX0309I | B187: Capex component
A188: DOPEX0310I | B188: Other component
B189: The increase during the period in the discounted amount arising from the passage of time and the effect of any change in the discount rate
A190: DOPEX0311I | B190: Opex component
A191: DOPEX0312I | B191: Capex component
A192: DOPEX0313I | B192: Other component
A193: DOPEX0314I | B193: Closing balance (carrying amount at the end of the period)
A194: DOPEX03J
A196: DOPEX0301J | B196: Opening balance (the carrying amount at the beginning of the period)
B197: Additional provisions made in the period, including increases to existing provisions
A198: DOPEX0302J | B198: Opex component
A199: DOPEX0303J | B199: Capex component
A200: DOPEX0304J | B200: Other component
B201: Amounts used (that is, incurred and charged against the provision) during the period
A202: DOPEX0305J | B202: Opex component
A203: DOPEX0306J | B203: Capex component
A204: DOPEX0307J | B204: Other component
B205: Unused amounts reversed during the period
A206: DOPEX0308J | B206: Opex component
... 159 more rows

Sheet 3.3 Assets (RAB)
B1: REGULATORY REPORTING STATEMENT
B2: =dms_TradingName -> Powercor Australia
B3: =CONCATENATE("Benchmarking RIN response ",CRY) -> Benchmarking RIN response 2017
B4: 3.3 ASSETS
B6: There are FOUR tables on this worksheet. Each table has been grouped (and sub-grouped) for ease of navigation. See the Instructions sheet on how to group or ungroup tables.
B8: 3.3.1 - REGULATORY ASSET BASE VALUES
C9: Network services | D9: Standard control services | E9: Alternative control services
C10: VALUE ($0's)
C11: =CRY -> 2017 | D11: =CRY -> 2017 | E11: =CRY -> 2017
B12: FOR TOTAL ASSET BASE
A13: DRAB0101 | B13: Opening value | C13: 2983310086 | D13: 3451505651 | E13: 336374826.8
A14: DRAB0102 | B14: Inflation addition | C14: 30526893.9 | D14: 35317732.24 | E14: 3199398.468
A15: DRAB0103 | B15: Straight line depreciation | C15: -159672768.5 | D15: -178174584.2 | E15: -42833218.58
A16: DRAB0105 | B16: Actual additions (recognised in RAB) | C16: 304528516.8 | D16: 340971659.2 | E16: 17144519.46
A17: DRAB0106 | B17: Disposals | C17: -2638180.782 | D17: -2638180.782 | E17: 0
A18: DRAB0107 | B18: Closing value | C18: =SUM(C13:C17) -> 3156054547 | D18: =SUM(D13:D17) -> 3646982278 | E18: =SUM(E13:E17) -> 313885526.2
B21: 3.3.2 - ASSET VALUE ROLL FORWARD
C22: Network services | D22: Standard control services | E22: Alternative control services
C23: VALUE ($0's)
C24: =CRY -> 2017 | D24: =CRY -> 2017 | E24: =CRY -> 2017
B25: For overhead network assets less than 33kV:
A26: DRAB0201 | B26: Opening value | C26: 1295997776 | D26: 1523193735 | E26: 0
A27: DRAB0202 | B27: Inflation addition | C27: 13261372.59 | D27: 15586168.45 | E27: 0
A28: DRAB0203 | B28: Straight line depreciation | C28: -51214308.23 | D28: -60192474.77 | E28: 0
A29: DRAB0205 | B29: Actual additions (recognised in RAB) | C29: 100877144.1 | D29: 118561495 | E29: 0
A30: DRAB0206 | B30: Disposals | C30: 0 | D30: 0 | E30: 0
A31: DRAB0207 | B31: Closing value | C31: =SUM(C26:C30) -> 1358921984 | D31: =SUM(D26:D30) -> 1597148923 | E31: =SUM(E26:E30) -> 0
B32: For underground network assets less than 33kV:
A33: DRAB0301 | B33: Opening value | C33: 660055386.7 | D33: 775766940.5 | E33: 0
A34: DRAB0302 | B34: Inflation addition | C34: 6754055.12 | D34: 7938080.322 | E34: 0
A35: DRAB0303 | B35: Straight line depreciation | C35: -26083594.16 | D35: -30656200.15 | E35: 0
A36: DRAB0305 | B36: Actual additions (recognised in RAB) | C36: 51377018.99 | D36: 60383709.66 | E36: 0
A37: DRAB0306 | B37: Disposals | C37: 0 | D37: 0 | E37: 0
A38: DRAB0307 | B38: Closing value | C38: =SUM(C33:C37) -> 692102866.7 | D38: =SUM(D33:D37) -> 813432530.4 | E38: =SUM(E33:E37) -> 0
B39: For distribution substations and transformers:
A40: DRAB0401 | B40: Opening value | C40: 318481860.5 | D40: 374313585.7 | E40: 0
A41: DRAB0402 | B41: Inflation addition | C41: 3258884.154 | D41: 3830185.528 | E41: 0
A42: DRAB0403 | B42: Straight line depreciation | C42: -12585537.16 | D42: -14791855.13 | E42: 0
A43: DRAB0405 | B43: Actual additions (recognised in RAB) | C43: 24789811.47 | D43: 29135609.81 | E43: 0
A44: DRAB0406 | B44: Disposals | C44: 0 | D44: 0 | E44: 0
A45: DRAB0407 | B45: Closing value | C45: =SUM(C40:C44) -> 333945019 | D45: =SUM(D40:D44) -> 392487525.9 | E45: =SUM(E40:E44) -> 0
B46: For overhead network assets 33kV and above:
A47: DRAB0501 | B47: Opening value | C47: 221531011 | D47: 260366687.6 | E47: 0
A48: DRAB0502 | B48: Inflation addition | C48: 2266828.95 | D48: 2664217.268 | E48: 0
A49: DRAB0503 | B49: Straight line depreciation | C49: -8754303.203 | D49: -10288983.54 | E49: 0
A50: DRAB0505 | B50: Actual additions (recognised in RAB) | C50: 17243405.91 | D50: 20266275.41 | E50: 0
A51: DRAB0506 | B51: Disposals | C51: 0 | D51: 0 | E51: 0
A52: DRAB0507 | B52: Closing value | C52: =SUM(C47:C51) -> 232286942.7 | D52: =SUM(D47:D51) -> 273008196.7 | E52: =SUM(E47:E51) -> 0
B53: For underground network assets 33kV and above:
A54: DRAB0601 | B54: Opening value | C54: 5960111.867 | D54: 7004954.192 | E54: 0
A55: DRAB0602 | B55: Inflation addition | C55: 60987.19119 | D55: 71678.60103 | E55: 0
A56: DRAB0603 | B56: Straight line depreciation | C56: -235527.4152 | D56: -276816.7429 | E56: 0
A57: DRAB0605 | B57: Actual additions (recognised in RAB) | C57: 463919.8266 | D57: 545247.6743 | E57: 0
A58: DRAB0606 | B58: Disposals | C58: 0 | D58: 0 | E58: 0
A59: DRAB0607 | B59: Closing value | C59: =SUM(C54:C58) -> 6249491.469 | D59: =SUM(D54:D58) -> 7345063.724 | E59: =SUM(E54:E58) -> 0
B60: Zone substations and transformers
A61: DRAB0701 | B61: Opening value | C61: 168709789 | D61: 198285597.6 | E61: 0
A62: DRAB0702 | B62: Inflation addition | C62: 1726332.724 | D62: 2028968.906 | E62: 0
A63: DRAB0703 | B63: Straight line depreciation | C63: -6666952.131 | D63: -7835707.671 | E63: 0
A64: DRAB0705 | B64: Actual additions (recognised in RAB) | C64: 13131937.42 | D64: 15434042.54 | E64: 0
A65: DRAB0706 | B65: Disposals | C65: 0 | D65: 0 | E65: 0
A66: DRAB0707 | B66: Closing value | C66: =SUM(C61:C65) -> 176901107 | D66: =SUM(D61:D65) -> 207912901.4 | E66: =SUM(E61:E65) -> 0
B67: For easements:
A68: DRAB0801 | B68: Opening value | C68: 0 | D68: 0 | E68: 0
A69: DRAB0802 | B69: Inflation addition | C69: 0 | D69: 0 | E69: 0
A70: DRAB0805 | B70: Actual additions (recognised in RAB) | C70: 0 | D70: 0 | E70: 0
A71: DRAB0806 | B71: Disposals | C71: 0 | D71: 0 | E71: 0
A72: DRAB0807 | B72: Closing value | C72: =SUM(C68:C71) -> 0 | D72: =SUM(D68:D71) -> 0 | E72: =SUM(E68:E71) -> 0
B73: For meters:
A74: DRAB0901 | B74: Opening value | C74: 0 | D74: 0 | E74: 312668486.7
A75: DRAB0902 | B75: Inflation addition | C75: 0 | D75: 0 | E75: 3199398.468
A76: DRAB0903 | B76: Straight line depreciation | C76: 0 | D76: 0 | E76: -41404593.48
A77: DRAB0905 | B77: Actual additions (recognised in RAB) | C77: 0 | D77: 0 | E77: 15009661.02
A78: DRAB0906 | B78: Disposals | C78: 0 | D78: 0 | E78: 0
A79: DRAB0907 | B79: Closing value | C79: =SUM(C74:C78) -> 0 | D79: =SUM(D74:D78) -> 0 | E79: =SUM(E74:E78) -> 289472952.7
B80: For “other” asset items with long lives:
A81: DRAB1001 | B81: Opening value | C81: 208640046.9 | D81: 208640046.9 | E81: 23706340.17
A82: DRAB1002 | B82: Inflation addition | C82: 2134921.41 | D82: 2134921.41 | E82: 0
A83: DRAB1003 | B83: Straight line depreciation | C83: -27173013.26 | D83: -27173013.26 | E83: -1428625.102
A84: DRAB1005 | B84: Actual additions (recognised in RAB) | C84: 73295298.37 | D84: 73295298.37 | E84: 2134858.44
A85: DRAB1006 | B85: Disposals | C85: -2638180.782 | D85: -2638180.782 | E85: 0
A86: DRAB1007 | B86: Closing value | C86: =SUM(C81:C85) -> 254259072.6 | D86: =SUM(D81:D85) -> 254259072.6 | E86: =SUM(E81:E85) -> 24412573.51
B87: For “other” asset items with short lives:
A88: DRAB1101 | B88: Opening value | C88: 103934104.1 | D88: 103934104.1 | E88: 0
A89: DRAB1102 | B89: Inflation addition | C89: 1063511.762 | D89: 1063511.762 | E89: 0
A90: DRAB1103 | B90: Straight line depreciation | C90: -26959532.89 | D90: -26959532.89 | E90: 0
A91: DRAB1105 | B91: Actual additions (recognised in RAB) | C91: 23349980.7 | D91: 23349980.7 | E91: 0
A92: DRAB1106 | B92: Disposals | C92: 0 | D92: 0 | E92: 0
A93: DRAB1107 | B93: Closing value | C93: =SUM(C88:C92) -> 101388063.6 | D93: =SUM(D88:D92) -> 101388063.6 | E93: =SUM(E88:E92) -> 0
B97: 3.3.3 - TOTAL DISAGGREGATED RAB ASSET VALUES
C98: Network services | D98: Standard control services | E98: Alternative control services
C99: VALUE ($0's)
C100: =CRY -> 2017 | D100: =CRY -> 2017 | E100: =CRY -> 2017
A101: DRAB1201 | B101: Overhead network assets less than 33kV (wires and poles) | C101: 1327459880 | D101: 1560171329 | E101: 0
A102: DRAB1202 | B102: Underground network assets less than 33kV (cables) | C102: 676079126.7 | D102: 794599735.4 | E102: 0
A103: DRAB1203 | B103: Distribution substations including transformers | C103: 326213439.8 | D103: 383400555.8 | E103: 0
A104: DRAB1204 | B104: Overhead network assets 33kV and above (wires and towers / poles etc) | C104: 226908976.8 | D104: 266687442.1 | E104: 0
A105: DRAB1205 | B105: Underground network assets 33kV and above(cables, ducts etc) | C105: 6104801.668 | D105: 7175008.958 | E105: 0
A106: DRAB1206 | B106: Zone substations and transformers | C106: 172805448 | D106: 203099249.5 | E106: 0
A107: DRAB1207 | B107: Easements | D107: 0
A108: DRAB1208 | B108: Meters | C108: 0 | D108: 0 | E108: 301070719.7
A109: DRAB1209 | B109: "Other" assets with long lives | C109: 231449559.7 | D109: 231449559.7 | E109: 24059456.84
A110: DRAB1210 | B110: "Other" assets with short lives | C110: 102661083.8 | D110: 102661083.8 | E110: 0
A111: DRAB13 | B111: Value of Capital Contributions or Contributed Assets (included in the above)
B114: 3.3.4 - ASSET LIVES
C115: Network services | D115: Standard control services | E115: Alternative control services
C116: Service Life (Years)
C117: =CRY -> 2017 | D117: =CRY -> 2017 | E117: =CRY -> 2017
B118: ESTIMATED SERVICE LIFE OF NEW ASSETS
A119: DRAB1401 | B119: Overhead network assets less than 33kV (wires and poles) | C119: 51 | D119: 51
A120: DRAB1402 | B120: Underground network assets less than 33kV (cables) | C120: 51 | D120: 51
A121: DRAB1403 | B121: Distribution substations including transformers | C121: 51 | D121: 51
A122: DRAB1404 | B122: Overhead network assets 33kV and above (wires and towers / poles etc) | C122: 51 | D122: 51
A123: DRAB1405 | B123: Underground network assets 33kV and above(cables, ducts etc) | C123: 51 | D123: 51
A124: DRAB1406 | B124: Zone substations and transformers | C124: 51 | D124: 51
A125: DRAB1407 | B125: Meters | E125: 14
A126: DRAB1408 | B126: "Other" assets with long lives | C126: 15 | D126: 15 | E126: 29
A127: DRAB1409 | B127: "Other" assets with short lives | C127: 6 | D127: 6
B128: ESTIMATED RESIDUAL SERVICE LIFE
A129: DRAB1501 | B129: Overhead network assets less than 33kV (wires and poles) | C129: 26 | D129: 26
A130: DRAB1502 | B130: Underground network assets less than 33kV (cables) | C130: 26 | D130: 26
A131: DRAB1503 | B131: Distribution substations including transformers | C131: 26 | D131: 26
A132: DRAB1504 | B132: Overhead network assets 33kV and above (wires and towers / poles etc) | C132: 26 | D132: 26
A133: DRAB1505 | B133: Underground network assets 33kV and above (cables, ducts etc) | C133: 26 | D133: 26
A134: DRAB1506 | B134: Zone substations and transformers | C134: 26 | D134: 26
A135: DRAB1507 | B135: Meters | E135: 8
A136: DRAB1508 | B136: "Other" assets with long lives | C136: 8 | D136: 8 | E136: 17
A137: DRAB1509 | B137: "Other" assets with short lives | C137: 4 | D137: 4

Sheet 3.4 Operational data
B1: REGULATORY REPORTING STATEMENT
B2: =dms_TradingName -> Powercor Australia
B3: =CONCATENATE("Benchmarking RIN response ",CRY) -> Benchmarking RIN response 2017
B4: 3.4 OPERATIONAL DATA
B6: There are THREE tables on this worksheet. Each table has been grouped for ease of navigation. See the Instructions sheet on how to group or ungroup tables.
B8: 3.4.1 - ENERGY DELIVERY
D9: Standard control services
D10: VOLUME (0's)
C11: Units | D11: =CRY -> 2017
A12: DOPED01 | B12: Total energy delivered | C12: GWh | D12: 10720.32
B15: 3.4.1.1 - Energy grouping - delivery by chargeable quantity
A16: DOPED0201 | B16: Energy Delivery where time of use is not a determinant | C16: GWh | D16: 2540.93
A17: DOPED0202 | B17: Energy Delivery at On-peak times | C17: GWh | D17: 4158.51
A18: DOPED0203 | B18: Energy Delivery at Shoulder times | C18: GWh | D18: 7.74
A19: DOPED0204 | B19: Energy Delivery at Off-peak times | C19: GWh | D19: 3543.81
A20: DOPED0205 | B20: Controlled load energy deliveries | C20: GWh | D20: 401.68
A21: DOPED0206 | B21: Energy Delivery to unmetered supplies | C21: GWh | D21: 67.66
B23: 3.4.1.2 - Energy - received from TNSP and other DNSPs by time of receipt
A24: DOPED0301 | B24: Energy into DNSP network at On-peak times | C24: GWh | D24: 5432
A25: DOPED0302 | B25: Energy into DNSP network at Shoulder times | C25: GWh | D25: 0
A26: DOPED0303 | B26: Energy into DNSP network at Off-peak times | C26: GWh | D26: 4981
A27: DOPED0304 | B27: Energy received from TNSP and other DNSPs not included in the above categories | C27: GWh | D27: 0
B29: 3.4.1.3 - Energy - received into DNSP system from embedded generation by time of receipt
A30: DOPED0401 | B30: Energy into DNSP network at On-peak times from non-residential embedded generation | C30: GWh | D30: 345
A31: DOPED0402 | B31: Energy into DNSP network at Shoulder times from non-residential embedded generation | C31: GWh | D31: 0
A32: DOPED0403 | B32: Energy into DNSP network at Off-peak times from non-residential embedded generation | C32: GWh | D32: 399
A33: DOPED0404 | B33: Energy received from embedded generation not included in above categories from non-residential embedded generation | C33: GWh | D33: 0
A34: DOPED0405 | B34: Energy into DNSP network at On-peak times from residential embedded generation | C34: GWh | D34: 179
A35: DOPED0406 | B35: Energy into DNSP network at Shoulder times from residential embedded generation | C35: GWh | D35: 0
A36: DOPED0407 | B36: Energy into DNSP network at Off-peak times from residential embedded generation | C36: GWh | D36: 75
A37: DOPED0408 | B37: Energy received from embedded generation not included in above categories from residential embedded generation | C37: GWh | D37: 0
B39: 3.4.1.4 - Energy grouping - customer type or class
A40: DOPED0501 | B40: Residential customers energy deliveries | C40: GWh | D40: 3548.19
A41: DOPED0502 | B41: Non residential customers not on demand tariffs energy deliveries | C41: GWh | D41: 987.5
A42: DOPED0503 | B42: Non-residential low voltage demand tariff customers energy deliveries | C42: GWh | D42: 3440.15
A43: DOPED0504 | B43: Non-residential high voltage demand tariff customers energy deliveries | C43: GWh | D43: 2744.48
A44: DOPED0505 | B44: Other Customer Class Energy Deliveries | C44: GWh | D44: 0
B47: 3.4.2 - CUSTOMER NUMBERS
D48: Standard control services
D49: VOLUME (0's)
D50: =CRY -> 2017
B51: 3.4.2.1 - Distribution customer numbers by customer type or class
A52: DOPCN0101 | B52: Residential customer numbers | D52: 700796
A53: DOPCN0102 | B53: Non residential customers not on demand tariff customer numbers | D53: 100909
A54: DOPCN0103 | B54: Low voltage demand tariff customer numbers | D54: 6833
A55: DOPCN0104 | B55: High voltage demand tariff customer numbers | D55: 205
A56: DOPCN0105 | B56: Unmetered Customer Numbers | D56: 7606
A57: DOPCN0106 | B57: Other Customer Numbers | D57: 0
A58: DOPCN01 | B58: Total customer numbers | D58: =SUM(D52:D57) -> 816349
B60: 3.4.2.2 - Distribution customer numbers by location on the network
A61: DOPCN0201 | B61: Customers on CBD network | D61: 0
A62: DOPCN0202 | B62: Customers on Urban network | D62: 316913
A63: DOPCN0203 | B63: Customers on Short rural network | D63: 281172
A64: DOPCN0204 | B64: Customers on Long rural network | D64: 218264
A65: DOPCN02 | B65: Total customer numbers | D65: =SUM(D61:D64) -> 816349
B67: 3.4.2.3 - Distribution customer numbers by TasNetworks (D) feeder categories (TasNetworks (D) only)
B68: Critical Infrastructure
B69: High Density Commercial
B70: Urban
B71: High Density Rural
B72: Low Density Rural
B73: Total customer numbers | D73: =SUM(D68:D72) -> 0
B75: 3.4.2.4 - Unmetered Supply TasNetworks (D) only)
A76: DOPCN0301 | B76: Number of unmetered connections reported in customer numbers in the economic benchmarking RIN
A77: DOPCN0302 | B77: Unmetered connections not reported in customer numbers in the economic benchmarking RIN
A78: DOPCN0303 | B78: Total unmetered connections
B81: 3.4.3 - SYSTEM DEMAND
D82: Standard control services
D83: VOLUME (0's)
C84: Units | D84: =CRY -> 2017
B85: 3.4.3.1 - Annual system maximum demand characteristics at the zone substation level – MW measure
A86: DOPSD0101 | B86: Non-coincident Summated Raw System Annual Maximum Demand | C86: MW | D86: 2449.91
A87: DOPSD0102 | B87: Non–coincident Summated Weather Adjusted System Annual Maximum Demand 10% POE | C87: MW | D87: 2896.41
A88: DOPSD0103 | B88: Non–coincident Summated Weather Adjusted System Annual Maximum Demand 50% POE | C88: MW | D88: 2485.71
A89: DOPSD0104 | B89: Coincident Raw System Annual Maximum Demand | C89: MW | D89: 2084.88
A90: DOPSD0105 | B90: Coincident Weather Adjusted System Annual Maximum Demand 10% POE | C90: MW | D90: 2464.86
A91: DOPSD0106 | B91: Coincident Weather Adjusted System Annual Maximum Demand 50% POE | C91: MW | D91: 2115.35
B93: 3.4.3.2 - Annual system maximum demand characteristics at the transmission connection point – MW measure
A94: DOPSD0107 | B94: Non-coincident Summated Raw System Annual Maximum Demand | C94: MW | D94: 2505
A95: DOPSD0108 | B95: Non–coincident Summated Weather Adjusted System Annual Maximum Demand 10% POE | C95: MW | D95: 3066
A96: DOPSD0109 | B96: Non–coincident Summated Weather Adjusted System Annual Maximum Demand 50% POE | C96: MW | D96: 2697
A97: DOPSD0110 | B97: Coincident Raw System Annual Maximum Demand | C97: MW | D97: 2156
A98: DOPSD0111 | B98: Coincident Weather Adjusted System Annual Maximum Demand 10% POE | C98: MW | D98: 2639
A99: DOPSD0112 | B99: Coincident Weather Adjusted System Annual Maximum Demand 50% POE | C99: MW | D99: 2321
B101: 3.4.3.3 - Annual system maximum demand characteristics at the zone substation level – MVA measure
A102: DOPSD0201 | B102: Non–coincident Summated Raw System Annual Maximum Demand | C102: MVA | D102: 2501.18
A103: DOPSD0202 | B103: Non–coincident Summated Weather Adjusted System Annual Maximum Demand 10% POE | C103: MVA | D103: 2849.41
A104: DOPSD0203 | B104: Non–coincident Summated Weather Adjusted System Annual Maximum Demand 50% POE | C104: MVA | D104: 2539.81
A105: DOPSD0204 | B105: Coincident Raw System Annual Maximum Demand | C105: MVA | D105: 2135.81
A106: DOPSD0205 | B106: Coincident Weather Adjusted System Annual Maximum Demand 10% POE | C106: MVA | D106: 2433.17
A107: DOPSD0206 | B107: Coincident Weather Adjusted System Annual Maximum Demand 50% POE | C107: MVA | D107: 2168.8
B109: 3.4.3.4 - Annual system maximum demand characteristics at the transmission connection point – MVA measure
A110: DOPSD0207 | B110: Non–coincident Summated Raw System Annual Maximum Demand | C110: MVA | D110: 2589
A111: DOPSD0208 | B111: Non–coincident Summated Weather Adjusted System Annual Maximum Demand 10% POE | C111: MVA | D111: 3169
A112: DOPSD0209 | B112: Non–coincident Summated Weather Adjusted System Annual Maximum Demand 50% POE | C112: MVA | D112: 2788
A113: DOPSD0210 | B113: Coincident Raw System Annual Maximum Demand | C113: MVA | D113: 2233
A114: DOPSD0211 | B114: Coincident Weather Adjusted System Annual Maximum Demand 10% POE | C114: MVA | D114: 2733
A115: DOPSD0212 | B115: Coincident Weather Adjusted System Annual Maximum Demand 50% POE | C115: MVA | D115: 2404
B117: 3.4.3.5 - Power factor conversion between MVA and MW
A118: DOPSD0301 | B118: Average overall network power factor conversion between MVA and MW | C118: Factor | D118: 0.9655
A119: DOPSD0302 | B119: Average power factor conversion for low voltage distribution lines | C119: Factor | D119: 0.85
A120: DOPSD0303 | B120: Average power factor conversion for 3.3 kV lines | C120: Factor | D120: 0
A121: DOPSD0304 | B121: Average power factor conversion for 6.6 kV lines | C121: Factor | D121: 0
A122: DOPSD0305 | B122: Average power factor conversion for 7.6 kV lines | C122: Factor | D122: 0
A123: DOPSD0306 | B123: Average power factor conversion for 11 kV lines | C123: Factor | D123: 0.9
A124: DOPSD0307 | B124: Average power factor conversion for SWER lines | C124: Factor | D124: 0.9
A125: DOPSD0308 | B125: Average power factor conversion for 22 kV lines | C125: Factor | D125: 0.9
A126: DOPSD0309 | B126: Average power factor conversion for 33 kV lines | C126: Factor | D126: 0
A127: DOPSD0310 | B127: Average power factor conversion for 44 kV lines | C127: Factor | D127: 0
A128: DOPSD0311 | B128: Average power factor conversion for 66 kV lines | C128: Factor | D128: 0.95
A129: DOPSD0312 | B129: Average power factor conversion for 110 kV lines | C129: Factor | D129: 0
A130: DOPSD0313 | B130: Average power factor conversion for 132 kV lines | C130: Factor | D130: 0
A131: DOPSD0314 | B131: Average power factor conversion for 220 kV lines | C131: Factor | D131: 0
B133: 3.4.3.6 - Demand supplied (for customers charged on this basis) – MW measure
A134: DOPSD0401 | B134: Summated Chargeable Contracted Maximum Demand | C134: MW | D134: 0
A135: DOPSD0402 | B135: Summated Chargeable Measured Maximum Demand | C135: MW | D135: 384
B137: 3.4.3.7 - Demand supplied (for customers charged on this basis) – MVA measure
A138: DOPSD0403 | B138: Summated Chargeable Contracted Maximum Demand | C138: MVA | D138: 0
A139: DOPSD0404 | B139: Summated Chargeable Measured Maximum Demand | C139: MVA | D139: 1535

Sheet 3.5 Physical assets
B1: REGULATORY REPORTING STATEMENT
B2: =dms_TradingName -> Powercor Australia
B3: =CONCATENATE("Benchmarking RIN response ",CRY) -> Benchmarking RIN response 2017
B4: 3.5 PHYSICAL ASSETS
B6: There are THREE tables on this worksheet. Each table has been grouped (and sub-grouped) for ease of navigation. See the Instructions sheet on how to group or ungroup tables.
B8: 3.5.1 - NETWORK CAPACITIES
C9: VOLUME in KM's (0's)
B10: Circuit length | C10: =CRY -> 2017
B11: 3.5.1.1 - Overhead network length of circuit at each voltage
A12: DPA0101 | B12: Overhead low voltage distribution | C12: 9578.07
A13: DPA0102 | B13: Overhead 2.2 kV | C13: 0
A14: DPA0103 | B14: Overhead 6.6kv | C14: 0
A15: DPA0104 | B15: Overhead 7.6 kV | C15: 0
A16: DPA0105 | B16: Overhead 11 kV | C16: 54.67
A17: DPA0106 | B17: Overhead SWER | C17: 21427.67
A18: DPA0107 | B18: Overhead 22 kV | C18: 34530.75
A19: DPA0108 | B19: Overhead 33 kV | C19: 0
A20: DPA0109 | B20: Overhead 44 kV | C20: 0
A21: DPA0110 | B21: Overhead 66 kV | C21: 3203.91
A22: DPA0111 | B22: Overhead 110kV | C22: 0
A23: DPA0112 | B23: Overhead 132 kV | C23: 0
A24: DPA0113 | B24: Overhead 220kV | C24: 0
A25: DPA0114 | B25: Other | C25: 0
A26: DPA01 | B26: Total overhead circuit km | C26: =SUM(C12:C25) -> 68795.07
B27: 3.5.1.2 - Underground network circuit length at each voltage
A28: DPA0201 | B28: Underground low voltage distribution | C28: 4180.05
A29: DPA0202 | B29: Underground 5 kV | C29: 0
A30: DPA0203 | B30: Underground 6.6 Kv | C30: 0
A31: DPA0204 | B31: Underground 7.6 kV | C31: 0
A32: DPA0205 | B32: Underground 11 kV | C32: 17.6
A33: DPA0206 | B33: Underground SWER | C33: 278.33
A34: DPA0207 | B34: Underground 22 kV | C34: 1846.02
A35: DPA0208 | B35: Underground 33 kV | C35: 0
A36: DPA0209 | B36: Underground 66 kV | C36: 3.54
A37: DPA0210 | B37: Underground 110 kV | C37: 0
A38: DPA0211 | B38: Underground 132 kV | C38: 0
A39: DPA0212 | B39: Other | C39: 0
A40: DPA02 | B40: Total underground circuit km | C40: =SUM(C28:C39) -> 6325.54
C41: VOLUME in MVA (0's)
B42: Circuit Capacity MVA | C42: =CRY -> 2017
B43: 3.5.1.3 - Estimated overhead network weighted average MVA capacity by voltage class
A44: DPA0301 | B44: Overhead low voltage distribution | C44: 0.2
A45: DPA0302 | B45: Overhead 6.6 kV | C45: 0
A46: DPA0303 | B46: Overhead 7.6 kV | C46: 0
A47: DPA0304 | B47: Overhead 11 kV | C47: 4
A48: DPA0305 | B48: Overhead SWER | C48: 0.08
A49: DPA0306 | B49: Overhead 22 kV | C49: 8
A50: DPA0307 | B50: Overhead 33 kV | C50: 0
A51: DPA0308 | B51: Overhead 44 kV | C51: 0
A52: DPA0309 | B52: Overhead 66 kV | C52: 50
A53: DPA0310 | B53: Overhead 110 kV | C53: 0
A54: DPA0311 | B54: Overhead 132 kV | C54: 0
A55: DPA0312 | B55: Overhead 220 kV | C55: 0
A56: DPA0313 | B56: Other | C56: 0
B57: 3.5.1.4 - Estimated underground network weighted average MVA capacity by voltage class
A58: DPA0401 | B58: Underground low voltage distribution | C58: 0.2
A59: DPA0402 | B59: Underground 5 kV | C59: 0
A60: DPA0403 | B60: Underground 6.6 kV | C60: 0
A61: DPA0404 | B61: Underground 7.6 kV | C61: 0
A62: DPA0405 | B62: Underground 11 kV | C62: 4
A63: DPA0406 | B63: Underground SWER | C63: 0.08
A64: DPA0407 | B64: Underground 12.7 kV | C64: 0
A65: DPA0408 | B65: Underground 22 kV | C65: 8
A66: DPA0409 | B66: Underground 33 kV | C66: 0
A67: DPA0410 | B67: Underground 66 kV | C67: 60
A68: DPA0411 | B68: Underground 110 kV | C68: 0
A69: DPA0412 | B69: Underground 132 kV | C69: 0
A70: DPA0413 | B70: Other | C70: 0
B74: 3.5.2 - TRANSFORMER CAPACITIES
C75: VOLUME in MVA (0's)
C76: =CRY -> 2017
B77: 3.5.2.1 - Distribution transformer total installed capacity
A78: DPA0501 | B78: Distribution transformer capacity owned by utility | C78: 7269.23
A79: DPA0502 | B79: Distribution transformer capacity owned by High Voltage Customers | C79: 643.29
A80: DPA0503 | B80: Cold spare capacity included in DPA0501 | C80: 85.23
B81: 3.5.2.2 - Zone substation transformer capacity
A82: DPA0601 | B82: Total installed capacity for first step transformation where there are two steps to reach distribution voltage | C82: 0
A83: DPA0602 | B83: Total installed capacity for second step transformation where there are two steps to reach distribution voltage | C83: 0
A84: DPA0603 | B84: Total zone substation transformer capacity where there is only a single step transformation to reach distribution voltage | C84: 3367
A85: DPA0604 | B85: Total zone substation transformer capacity | C85: 3446
A86: DPA0605 | B86: Cold spare capacity of zone substation transformers included in DPA0604 | C86: 79
B87: 3.5.2.3 - Distribution - other transformer capacity
B88: Distribution other - transformer capacity owned by utility
B92: 3.5.3 - PUBLIC LIGHTING
C93: VOLUME (0's)
C94: =CRY -> 2017
A95: DPA0701 | B95: Public lighting luminaires | C95: 170676
A96: DPA0702 | B96: Public lighting poles | C96: 83645
A97: DPA0703 | B97: Public lighting columns | C97: 0

Sheet 3.6 Quality of service
B1: REGULATORY REPORTING STATEMENT
B2: =dms_TradingName -> Powercor Australia
B3: =CONCATENATE("Benchmarking RIN response ",CRY) -> Benchmarking RIN response 2017
B4: 3.6 QUALITY OF SERVICE DATA
B7: 3.6.1 - RELIABILITY
D8: (0's)
C9: Units | D9: =IF(dms_RPT="financial",CONCATENATE("Calendar Year ", dms_0306_Year),dms_0306_Year) -> 2017
B10: INCLUSIVE OF MEDs
A11: DQS0101 | B11: Whole of network unplanned SAIDI | C11: minutes/customer | D11: 146.0967384
A12: DQS0102 | B12: Whole of network unplanned SAIDI excluding excluded outages | C12: minutes/customer | D12: 146.08538
A13: DQS0103 | B13: Whole of network unplanned SAIFI | C13: interruptions/customer | D13: 1.267773079
A14: DQS0104 | B14: Whole of network unplanned SAIFI excluding excluded outages | C14: interruptions/customer | D14: 1.26738141
B15: EXCLUSIVE OF MEDs
A16: DQS0105 | B16: Whole of network unplanned SAIDI | C16: minutes/customer | D16: 100.1068639
A17: DQS0106 | B17: Whole of network unplanned SAIDI excluding excluded outages | C17: minutes/customer | D17: 100.0955055
A18: DQS0107 | B18: Whole of network unplanned SAIFI | C18: interruptions/customer | D18: 1.113322032
A19: DQS0108 | B19: Whole of network unplanned SAIFI excluding excluded outages | C19: interruptions/customer | D19: 1.112930364
B21: 3.6.2 - ENERGY NOT SUPPLIED
D22: (0's)
C23: Units | D23: =IF(dms_RPT="financial",CONCATENATE("Calendar Year ", dms_0306_Year),dms_0306_Year) -> 2017
A24: DQS0201 | B24: Energy Not Supplied (planned) | C24: GWh | D24: 1.34218
A25: DQS0202 | B25: Energy Not Supplied (unplanned) | C25: GWh | D25: 2.59877
A26: DQS02 | B26: Total | D26: =SUM(D24:D25) -> 3.94095
B28: 3.6.3 - SYSTEM LOSSES
D29: (0's)
C30: Unit | D30: =IF(dms_RPT="financial",CONCATENATE("Calendar Year ", dms_0306_Year),dms_0306_Year) -> 2017
A31: DQS03 | B31: System losses | C31: % | D31: 0.06573469
B33: 3.6.4 - CAPACITY UTILISATION
D34: (0's)
C35: Unit | D35: =IF(dms_RPT="financial",CONCATENATE("Calendar Year ", dms_0306_Year),dms_0306_Year) -> 2017
A36: DQS04 | B36: Overall utilisation | C36: % | D36: 0.6794

Sheet 3.7 Operating environment
B1: REGULATORY REPORTING STATEMENT
B2: =dms_TradingName -> Powercor Australia
B3: =CONCATENATE("Benchmarking RIN response ",CRY) -> Benchmarking RIN response 2017
B4: 3.7 OPERATING ENVIRONMENT FACTORS
B7: 3.7.1 - DENSITY FACTORS
D8: (0's)
C9: Units | D9: =CRY -> 2017
A10: DOEF0101 | B10: Customer density | C10: Customer / km | D10: 12
A11: DOEF0102 | B11: Energy density | C11: MWh/customer | D11: 13.1
A12: DOEF0103 | B12: Demand density | C12: kVA / customer | D12: 3.1
B14: 3.7.2 - TERRAIN FACTORS
D15: (0's)
C16: Units | D16: =CRY -> 2017
A17: DOEF0201 | B17: Rural proportion | C17: % | D17: 0.9191
A18: DOEF0202 | B18: Urban and CBD vegetation maintenance spans | C18: Number of spans | D18: 3758
A19: DOEF0203 | B19: Rural vegetation maintenance spans | C19: Number of spans | D19: 55660
A20: DOEF0204 | B20: Total vegetation maintenance spans | C20: Number of spans | D20: 59418
A21: DOEF0205 | B21: Total number of spans | C21: Number of spans | D21: 503338
A22: DOEF0206 | B22: Average urban and CBD vegetation maintenance span cycle | C22: Years | D22: 1.98
A23: DOEF0207 | B23: Average rural vegetation maintenance span cycle | C23: Years | D23: 2.7
A24: DOEF0208 | B24: Average number of trees per urban and CBD vegetation maintenance span | C24: Trees | D24: 2.31
A25: DOEF0209 | B25: Average number of trees per rural vegetation maintenance span | C25: Trees | D25: 8.04
A26: DOEF0210 | B26: Average number of defects per urban and CBD vegetation maintenance span | C26: Defects | D26: 1.06
A27: DOEF0211 | B27: Average number of defects per rural vegetation maintenance span | C27: Defects | D27: 1.04
A28: DOEF0212 | B28: Tropical proportion | C28: Spans | D28: 0
A29: DOEF0213 | B29: Standard vehicle access | C29: km | D29: 4423
A30: DOEF0214 | B30: Bushfire risk | C30: Spans | D30: 280686
B32: 3.7.3 - SERVICE AREA FACTORS
D33: (0's)
C34: Units | D34: =CRY -> 2017
A35: DOEF0301 | B35: Route Line length | C35: km | D35: 67928.85

Sheet NSP amendments
B1: =CONCATENATE(dms_TradingName," data amendments") -> Powercor Australia data amendments
B2: Amended Table | C2: Comments
